Cogmind - Beta 17.1 @@@ ROGUE MODE // 2026.09.17 @ 23:53:56 Player: Err. String Expected Got Nil Result: Escaped! Performance ------------- Evolutions (9) 4500 Regions Visited (32) 6400 Robots Destroyed (533) 2665 Value Destroyed (27528) 27528 Prototype IDs (70) 1400 Alien Tech Used (2) 400 Bonus (16055) 16055 TOTAL SCORE: 58948 Bonus ------- High Alert Combat Kills 4425 Follower Combat Kills 2130 Entered Garrisons 1600 Used RIF Installer 4500 Entered DSFs 500 Aligned with FarCom 300 Win 3000 Friendly Fire -400 Cogmind --------- Core Integrity 1522/1600 Matter 290/300 Energy 579/600 System Corruption 16% Temperature Cool (10) Movement Treading (146) Location To Epsilon Eridani Parts ------- > --- POWER (2) -------- Quantum Reactor Quantum Reactor > --- PROPULSION (6) --- Improved Heavy Treads Biometal Heavy Treads Experimental Biometal Heavy Treads > --- UTILITY (13) ----- Advanced Heat Sink Advanced Heat Sink Advanced Heat Sink Huge Storage Unit Experimental Terrain Scan Processor Advanced Targeting Computer Core Analyzer Improved Powered Armor Improved Powered Armor Improved Powered Armor Improved Powered Armor Graphene Brace Improved Hardlight Generator > --- WEAPON (4) ------- Enhanced Nova Cannon Enhanced Nova Cannon Linear Accelerator Enhanced Hardcell Cannon > --- INVENTORY (25) --- Micro Antimatter Reactor Micro Antimatter Reactor Improved Heavy Treads Improved Heavy Treads Armored Heavy Treads Armored Heavy Treads Matter Compressor (250) Improved Matter Compressor (300) Improved Powered Armor Improved Hardlight Generator Long-range Tractor Beam Neutron Cannon Enhanced Nova Cannon Enhanced Hardcell Cannon Mini Smartbomb Launcher Point Singularity Launcher Advanced Remote Datajack Peak State ------------ > --- POWER ------------ Quantum Reactor Quantum Reactor > --- PROPULSION ------- Improved Heavy Treads Biometal Heavy Treads Experimental Biometal Heavy Treads > --- UTILITY ---------- Advanced Heat Sink Advanced Heat Sink Advanced Heat Sink Huge Storage Unit Experimental Terrain Scan Processor Advanced Targeting Computer Core Analyzer Improved Powered Armor Improved Powered Armor Improved Powered Armor Improved Powered Armor Improved Powered Armor Graphene Brace > --- WEAPON ----------- Enhanced Nova Cannon Enhanced Nova Cannon Linear Accelerator Enhanced Hardcell Cannon > --- INVENTORY -------- Micro Antimatter Reactor Micro Antimatter Reactor Improved Heavy Treads Improved Heavy Treads Armored Heavy Treads Armored Heavy Treads Matter Compressor Improved Matter Compressor Improved Powered Armor Improved Hardlight Generator Improved Hardlight Generator Long-range Tractor Beam Neutron Cannon Enhanced Nova Cannon Enhanced Hardcell Cannon Mini Smartbomb Launcher Point Singularity Launcher Advanced Remote Datajack [Rating: 189] Favorites ----------- Power Improved Ion Engine Engine Improved Ion Engine Power Core Cooled Fission Core Reactor Micro Antimatter Reactor Propulsion Improved Heavy Treads Treads Improved Heavy Treads Leg Aluminum Leg Wheel Wheel Flight Unit Surge Thruster Utility Advanced Heat Sink Device Advanced Heat Sink Storage Huge Storage Unit Processor Core Analyzer Hackware Relay Coupler [Grunt] Protection Improved Medium Armor Plating Weapon Advanced KE Penetrator Energy Gun Advanced Beam Rifle Energy Cannon Enhanced Nova Cannon Ballistic Gun Advanced KE Penetrator Ballistic Cannon Enhanced Hardcell Cannon Launcher Heavy Rocket Launcher Special Weapon Improved Remote Datajack Slashing Weapon Chainsword Piercing Weapon Lance Special Melee Weapon Improved Datajack Build | -11 -10 -10 -10 -9 -8 -8 -8 -8 -8 -7 -7 -7 -7 -6 -6 -5 -5 -5 -5 -4 -4 -4 -4 -4 -4 -4 -4 -3 -3 -3 -2 -1 ------- Run | Yrd Mat Min Exi Min Mat Gar Mat Sto Gar Fac Gar Fac Gar Fac Gar Fac Gar Fac Gar Fac Was Fac Gar Fac Upp Upp Zhi Pro Res DSF Res Acc Slots Evolved 18 | . . . . . 4 . . . . 2 . . . 2 . 2 . . . 2 . . . . . . . . 2 . 2 2 Power 1 | . . . . . . . . . . . . . . . . . . . . . . . . . . . . . 1 . . . Propulsion 4 | . . . . . 2 . . . . . . . . . . . . . . . . . . . . . . . . . . 2 Utility 11 | . . . . . 2 . . . . 1 . . . 2 . 2 . . . 2 . . . . . . . . . . 2 . Weapon 2 | . . . . . . . . . . 1 . . . . . . . . . . . . . . . . . . 1 . . . Parts Attached 314 | 4 6 . . 4 21 13 22 3 2 2 5 5 10 7 9 28 7 14 8 12 10 15 10 11 . 2 1 . 2 7 47 27 Power 30 | . . . . . 1 2 2 2 . . 1 . 1 . 1 3 . 1 1 1 2 2 . . . . 1 . 1 . 5 3 Engine 12 | . . . . . 1 2 2 2 . . 1 . 1 . 1 1 . . . . 1 . . . . . . . . . . . Core 4 | . . . . . . . . . . . . . . . . 1 . 1 1 . . 1 . . . . . . . . . . Reactor 14 | . . . . . . . . . . . . . . . . 1 . . . 1 1 1 . . . . 1 . 1 . 5 3 Propulsion 53 | 2 1 . . . 8 4 6 . . 1 . . 2 2 . 3 . 2 3 3 2 2 . . . . . . . 1 8 3 Treads 44 | 2 1 . . . 8 3 6 . . 1 . . 2 2 . 3 . 2 3 . 2 2 . . . . . . . 1 3 3 Leg . | . . . . . . . . . . . . . . . . . . . . . . . . . . . . . . . . . Wheel 8 | . . . . . . . . . . . . . . . . . . . . 3 . . . . . . . . . . 5 . Hover . | . . . . . . . . . . . . . . . . . . . . . . . . . . . . . . . . . Flight 1 | . . . . . . 1 . . . . . . . . . . . . . . . . . . . . . . . . . . Utility 147 | 1 2 . . 1 4 5 10 1 1 1 4 4 4 3 4 11 5 6 4 4 3 7 4 9 . 2 . . . 6 25 16 Device 48 | 1 . . . 1 1 2 6 . . . . . 2 . . 4 2 2 1 1 1 1 2 4 . 1 . . . 2 10 4 Storage 9 | . 2 . . . . . 1 . . . . 1 . 1 1 . . . . 1 . 1 . 1 . . . . . . . . Processor 8 | . . . . . 1 . 1 . . . . . . . . 2 . . . . . . . . . . . . . . 3 1 Hackware 35 | . . . . . . 1 . . 1 . 2 3 . 2 2 3 3 2 1 1 . 4 2 . . 1 . . . 1 4 2 Protection 47 | . . . . . 2 2 2 1 . 1 2 . 2 . 1 2 . 2 2 1 2 1 . 4 . . . . . 3 8 9 Artifact . | . . . . . . . . . . . . . . . . . . . . . . . . . . . . . . . . . Weapon 84 | 1 3 . . 3 8 2 4 . 1 . . 1 3 2 4 11 2 5 . 4 3 4 6 2 . . . . 1 . 9 5 Energy Gun 11 | 1 . . . 1 4 . 1 . 1 . . . . . . 1 . 1 . 1 . . . . . . . . . . . . Energy Cannon 19 | . . . . 1 1 . 1 . . . . . 1 1 . 1 1 2 . 1 . 1 1 2 . . . . . . 2 3 Ballistic Gun 24 | . 2 . . . 2 . 1 . . . . 1 1 . 4 5 1 . . . . 3 3 . . . . . . . 1 . Ballistic Cannon 10 | . . . . . . . . . . . . . . . . 3 . . . 1 . . 1 . . . . . 1 . 3 1 Launcher 9 | . 1 . . 1 . . 1 . . . . . 1 . . . . 1 . . 2 . 1 . . . . . . . . 1 Special Weapon 5 | . . . . . . 1 . . . . . . . 1 . 1 . 1 . . . . . . . . . . . . 1 . Impact Weapon . | . . . . . . . . . . . . . . . . . . . . . . . . . . . . . . . . . Slashing Weapon 1 | . . . . . 1 . . . . . . . . . . . . . . . . . . . . . . . . . . . Piercing Weapon 4 | . . . . . . . . . . . . . . . . . . . . 1 1 . . . . . . . . . 2 . Special Melee Weapon 1 | . . . . . . 1 . . . . . . . . . . . . . . . . . . . . . . . . . . Unidentified Prototypes 23 | . . . . . 2 . 2 . . . . . . . . 1 . 2 . 2 2 1 . . . . 2 . . . 8 1 Parts Lost 72 | . . . . 2 3 1 1 . . . . 1 2 1 1 6 1 3 10 5 . 1 2 3 . . . . . 4 21 4 Power 6 | . . . . . 1 . . . . . . . . . . 2 . 1 1 . . . . . . . . . . . 1 . Propulsion 17 | . . . . . 1 1 . . . . . . . 1 . 1 1 1 4 2 . . . 1 . . . . . 1 3 . Utility 34 | . . . . . 1 . 1 . . . . 1 2 . 1 3 . . 2 3 . 1 2 2 . . . . . 2 9 4 Weapon 15 | . . . . 2 . . . . . . . . . . . . . 1 3 . . . . . . . . . . 1 8 . Highest Loss Streak 8 | . . . . 2 1 1 1 . . . . 1 1 1 1 3 1 2 7 3 . 1 2 2 . . . . . 2 8 1 To Critical Strikes . | . . . . . . . . . . . . . . . . . . . . . . . . . . . . . . . . . Average Backups 21 | 2 10 15 14 14 14 14 21 24 25 24 24 24 22 19 22 22 22 23 19 21 23 22 22 23 24 24 23 24 22 21 22 21 Power 1 | 1 1 1 1 1 . 1 1 2 2 2 2 2 1 2 3 2 2 1 1 . 2 1 2 2 2 2 2 2 1 1 1 1 Propulsion 2 | . 2 4 4 4 2 1 2 3 3 3 4 4 3 2 2 1 1 2 . . . 2 1 1 1 1 1 1 1 1 2 4 Utility 8 | . 2 4 3 4 4 4 8 11 12 10 9 9 7 6 6 8 11 10 11 13 12 9 6 8 11 11 10 10 10 9 10 9 Weapon 7 | 1 4 5 5 4 5 7 7 7 7 6 8 9 7 7 8 7 7 7 4 6 6 7 10 9 9 9 9 9 8 8 5 5 Tool/Special . | . . . . . . . . . . . . . . . . . . . . . . . . . . . . . . . . . Unused Backups 89 | 4 4 . 2 . 10 4 13 . . . 3 1 13 . 1 3 1 1 1 . . 4 5 . . . 1 . . . 3 15 Power 11 | . 1 . . . 1 . . . . . . . 4 . . 1 . 1 . . . 1 2 . . . . . . . . . Propulsion 23 | 4 . . . . . . 5 . . . . . 3 . . . . . . . . 2 . . . . . . . . . 9 Utility 36 | . 1 . 1 . 6 4 1 . . . 3 1 6 . . . 1 . 1 . . 1 2 . . . 1 . . . 2 5 Weapon 15 | . 2 . 1 . 2 . 7 . . . . . . . 1 . . . . . . . 1 . . . . . . . . 1 Tool/Special 4 | . . . . . 1 . . . . . . . . . . 2 . . . . . . . . . . . . . . 1 . Average Slot Usage (%) 91 | . 100 100 100 93 99 99 100 100 100 99 100 100 86 85 85 87 87 88 89 91 87 88 88 88 89 89 73 89 89 89 91 87 Engine 3 | . 14 14 14 14 9 9 9 9 9 7 7 7 7 5 6 1 . . . . . . . . . . . . . . . . Core 1 | . . . . . . . . . . . . . . . . 1 . . 5 3 . 3 5 5 5 5 3 . . . . . Reactor 2 | . . . . . . . . . . . . . . . . 1 5 4 . 1 5 1 . . . . 1 5 9 9 7 7 Treads 17 | . 28 28 28 28 35 35 36 36 36 30 30 30 17 13 12 10 10 12 12 6 6 10 10 10 10 10 10 10 9 8 5 12 Device 9 | . 14 14 14 14 9 8 8 9 9 7 5 . . 9 6 6 6 5 8 5 5 8 14 18 15 15 14 15 14 16 15 13 Storage 6 | . 14 14 14 14 9 9 9 9 9 7 7 7 7 6 6 5 5 5 5 8 8 5 5 5 5 5 5 5 4 4 4 4 Processor 8 | . . . . . 8 9 9 9 9 7 7 7 7 6 6 8 11 11 11 10 10 10 10 10 10 10 10 10 9 9 9 13 Hackware 13 | . . . . . . . . . 2 7 4 15 14 16 20 24 25 25 17 18 21 21 21 15 15 15 15 15 14 14 14 8 Protection 7 | . . . . . 8 8 9 9 6 7 11 7 6 5 5 4 1 2 7 8 8 10 5 5 10 10 10 10 9 5 10 11 Energy Gun 2 | . . . . 12 10 9 8 5 6 7 7 7 2 . 2 . . 4 . . . . . . . . . . . . . . Energy Cannon 2 | . . . . 6 1 . . 5 2 . . . . 5 1 . 3 . 4 4 4 3 . 3 3 4 . 4 4 3 4 7 Ballistic Gun 9 | . 27 28 28 1 5 8 8 6 8 14 13 7 17 10 13 11 6 8 1 . . 3 14 11 11 10 . 10 13 12 4 . Ballistic Cannon 1 | . . . . . . . . . . . . . . . . 2 4 1 7 3 4 6 . . . . . . . 1 5 7 Peak Build Rating 189 | 7 10 9 10 12 29 38 39 38 41 48 54 54 70 81 83 101 99 99 87 90 115 125 127 130 128 128 129 130 146 148 173 189 Average Rating 87 | 6 8 9 9 11 23 30 33 38 38 46 47 51 65 75 81 93 95 94 71 80 99 118 123 125 127 127 104 128 144 143 147 178 On Entrance 75 | 6 7 9 9 10 12 29 29 38 38 41 47 54 50 70 76 82 98 96 87 70 76 113 123 125 127 128 128 129 129 146 136 163 Avg Prop Armor Cover (%) 7 | . . . . . . . . . . . . . . . . . . . . 7 . . . . . . . . . . . . Naked Turns . | . . . . . . . . . . . . . . . . . . . . . . . . . . . . . . . . . Heaviest Build 231 | 15 30 30 30 32 43 43 100 104 104 103 106 105 109 115 114 124 128 128 133 132 142 146 132 144 137 137 135 135 170 161 182 231 Greatest Support 235 | 40 40 40 40 40 80 80 84 84 84 90 90 90 150 150 150 150 150 150 126 58 150 155 155 160 160 160 160 160 160 160 160 235 Greatest Overweight (x) 54 | . . . . . . . 1 1 1 1 1 1 1 . . . . 1 4 12 4 . . . . . . . 1 1 54 1 Average Overweight (x) . | . . . . . . . . 1 1 1 1 1 . . . . . . 1 5 1 . . . . . . . . . 1 . Largest Inventory Capacity 25 | 8 15 15 15 15 15 15 25 25 25 25 25 25 25 25 25 25 25 25 25 25 25 25 25 25 25 25 25 25 25 25 25 25 Average Capacity 23 | 8 14 15 15 15 15 15 22 25 25 25 25 25 25 25 25 25 25 25 25 25 25 24 25 25 25 25 25 25 25 25 25 25 Most Carried 25 | 6 15 15 15 15 15 15 25 25 25 25 25 25 25 24 25 25 25 25 25 25 25 25 25 25 25 25 25 25 24 24 25 25 Average Carried 22 | 2 11 15 14 14 14 14 21 24 25 24 24 24 24 22 24 24 23 24 19 21 24 24 24 24 25 25 24 25 23 22 24 24 Final Capacity 25 | 8 15 15 15 15 15 15 25 25 25 25 25 25 25 25 25 25 25 25 25 25 25 25 25 25 25 25 25 25 25 25 25 25 Final Carried 25 | 2 15 15 15 15 15 15 24 25 25 25 25 24 25 23 25 25 25 25 20 23 25 25 25 25 25 25 25 25 23 20 25 21 Class Distribution -------------------- 39% | Botlord-Tank 13% | Bothacker-Tank 11% | Bothacker-Mutant 8% | Botlord-Gunner 7% | Mutant 6% | Scavenger-Mutant 4% | Botlord-Mutant 3% | Scavenger-Tank Dominant Class ---------------- Mutant | -10/Materials Mutant | -10/Mines Mutant | -10/Exiles Mutant | -9/Mines Scavenger-Mutant | -8/Materials Scavenger-Mutant | -8/Garrison Bothacker-Mutant | -8/Materials Bothacker-Mutant | -8/Storage Bothacker-Mutant | -8/Garrison Bothacker-Tank | -7/Factory Bothacker-Tank | -7/Garrison Bothacker-Skirmisher | -7/Factory Bothacker-Tank | -7/Garrison Bothacker-Tank | -6/Factory Bothacker-Tank | -6/Garrison Botlord-Tank | -5/Factory Botlord-Tank | -5/Garrison Botlord-Gunner | -5/Factory Botlord-Gunner | -5/Garrison Botlord-Gunner | -4/Factory Botlord-Mutant | -4/Waste Botlord-Tank | -4/Factory Botlord-Tank | -4/Garrison Botlord-Tank | -4/Factory Botlord-Tank | -4/Upper Caves Botlord-Tank | -4/Upper Caves Botlord-Mutant | -4/Zhirov Botlord-Tank | -3/Proximity Caves Botlord-Tank | -3/Research Botlord-Tank | -3/DSF Botlord-Tank | -2/Research Scavenger-Tank | -1/Access Resources | -11 -10 -10 -10 -9 -8 -8 -8 -8 -8 -7 -7 -7 -7 -6 -6 -5 -5 -5 -5 -4 -4 -4 -4 -4 -4 -4 -4 -3 -3 -3 -2 -1 ----------- Run | Yrd Mat Min Exi Min Mat Gar Mat Sto Gar Fac Gar Fac Gar Fac Gar Fac Gar Fac Gar Fac Was Fac Gar Fac Upp Upp Zhi Pro Res DSF Res Acc Matter Collected 24830 | 250 359 . 10 59 547 596 672 153 96 . 381 273 906 427 606 2140 816 1954 863 403 721 654 1908 986 307 164 . 181 230 808 4017 3343 Remotely 6854 | . . . . . . . . . . . . . 160 . 130 53 190 613 553 . . . 352 276 . . . 91 . 508 2106 1822 Salvage Created 24082 | 73 443 . . 61 937 818 1498 219 67 . 544 154 1803 661 467 2589 394 2086 773 400 411 764 1015 1759 242 142 . 126 . 372 2596 2668 Parts 1150 | 3 30 . . 6 44 56 81 15 8 . 33 2 79 28 32 127 10 86 50 24 2 18 36 85 14 7 . 6 . 23 125 120 Haulers Intercepted 14 | . 2 . . . 3 . 3 . . . . . . 1 . . . 2 . . . . . 1 . . . . . . . 2 Recyclers Shooed 21 | 1 1 . . . . . . . . . . . . . . 7 . 2 . . . 3 . 1 . . . . . . 5 1 Parts Field Recycled . | . . . . . . . . . . . . . . . . . . . . . . . . . . . . . . . . . Retrieved Matter . | . . . . . . . . . . . . . . . . . . . . . . . . . . . . . . . . . Parts Self-Destructed 30 | . . . . . . . . . . . . . . . . . . . . . . . . . 15 7 . 8 . . . . Prevented . | . . . . . . . . . . . . . . . . . . . . . . . . . . . . . . . . . Parts Restored 3 | . . . . . . . . . . . . . . . . 1 . . . . 2 . . . . . . . . . . . Broken 3 | . . . . . . . . . . . . . . . . 1 . . . . 2 . . . . . . . . . . . Kills | -11 -10 -10 -10 -9 -8 -8 -8 -8 -8 -7 -7 -7 -7 -6 -6 -5 -5 -5 -5 -4 -4 -4 -4 -4 -4 -4 -4 -3 -3 -3 -2 -1 ------- Run | Yrd Mat Min Exi Min Mat Gar Mat Sto Gar Fac Gar Fac Gar Fac Gar Fac Gar Fac Gar Fac Was Fac Gar Fac Upp Upp Zhi Pro Res DSF Res Acc Combat Hostiles Destroyed 430 | . 10 . . 3 17 20 24 4 5 . 15 3 22 7 20 33 8 23 25 8 . 14 18 19 11 5 . 8 . 13 47 48 Guns 188 | . 7 . . 1 12 14 19 4 1 . 10 3 16 4 12 25 2 17 1 . . 1 14 14 3 . . 1 . 3 4 . Cannons 116 | . . . . . . . . . . . . . 1 1 . 7 6 6 11 6 . 8 . 4 . . . . . 4 32 30 AOE 117 | . 3 . . 2 5 6 5 . 4 . 5 . 5 . 8 1 . . 13 2 . 5 4 . 8 4 . 7 . 6 10 14 Classes Destroyed 22 | 2 5 . . 1 3 4 . . 1 . . . 2 . . 2 . . . . . . . 1 . . . . . 1 . . Worker 22 | . . . . . 1 . 2 . . . . . . 1 . 3 . . . 4 . . . 1 . . . . . . 6 4 Builder 14 | . . . . . . . . . . . . . . . . 2 . 2 . . . 2 . 1 . . . . . . 5 2 Tunneler 5 | 1 . . . 2 . . . . . . . . . . . . . . . 1 . . . . . . . . . . 1 . Hauler 14 | . 2 . . . 3 . 3 . . . . . . 1 . . . 2 . . . . . 1 . . . . . . . 2 Recycler 27 | 1 1 . . . 2 . 1 . . . . . . 1 . 5 . 3 . 1 . 4 . 3 . . . . . . 3 2 Mechanic 3 | . . . . . . 1 . . . . . . 1 . . 1 . . . . . . . . . . . . . . . . Operator 3 | . 1 . . . 1 . 1 . . . . . . . . . . . . . . . . . . . . . . . . . Watcher 13 | . 3 . . . . . 2 1 . . . . . 2 . . . 1 . . . . . 1 . . . . . . 1 2 Swarmer 113 | . 6 . . . 4 2 3 . 4 . 8 . 4 3 15 . . . 13 5 . 5 5 . 8 4 . 3 . 4 5 12 Cutter 2 | . . . . . . 2 . . . . . . . . . . . . . . . . . . . . . . . . . . Saboteur 3 | . . . . . . . . . . . . . . . . . . . . . . . . 1 . . . . . . 1 1 Grunt 137 | . 4 . . 1 8 7 13 2 . . 6 . 7 2 3 8 4 6 7 . . 1 10 8 2 . . 4 . 5 18 11 Brawler 9 | . . . . . 2 . . . . . . . 2 . . 1 . . . . . . . 2 . . . . . . . 2 Duelist 5 | . . . . . . . . . . . . . 1 . . 2 . . . . . . . . . . . . . . 1 1 Protector 1 | . . . . . . . . . . . . . . . . 1 . . . . . . . . . . . . . . . . Sentry 41 | . . . . . 3 5 8 2 . . 1 1 5 1 1 2 1 2 . . . . 2 1 . 1 . 1 . 1 1 2 Specialist 8 | . . . . . . 1 . . . . . . 2 . . 1 . . . . . . . . . . . . . 3 1 . Hunter 35 | . . . . . . . . . 1 . . 2 . . . 7 2 6 2 1 . 4 . . . . . . . . 4 6 Programmer 70 | . . . . . . 3 . . . . 1 . . 1 1 11 . 10 2 2 . 4 1 7 1 . . . . . 15 11 Heavy 2 | . . . . . . . . . . . . . . . . . . . . . . . . . . . . . . 1 1 . Behemoth 6 | . . . . . . . . . . . . . 1 . . . 1 . 1 . . . 1 . . . . . . . . 2 Assembled 2 | . . . . 2 . . . . . . . . . . . . . . . . . . . . . . . . . . . . Best Kill Streak 29 | 1 3 . . 3 7 5 5 2 4 . 7 1 7 4 6 9 3 6 8 8 . 6 6 8 4 4 . 6 . 9 29 7 Combat Bots Only 18 | . 3 . . 2 6 5 5 2 4 . 7 1 7 3 6 9 3 5 8 5 . 5 6 8 4 4 . 6 . 9 18 6 Max Kills in Single Turn 6 | 1 2 . . 3 3 2 4 1 4 . 2 1 3 2 4 2 1 2 4 4 . 4 2 2 2 4 . 3 . 3 6 3 Gunslinging 1 | . . . . . . 1 1 . . . . . . . . . . . . . . . . . 1 . . . . . . . Exploded 4 | . 2 . . 2 2 2 4 . 4 . 2 . 3 . 4 1 . . 4 2 . 4 2 . 2 4 . 3 . 3 4 3 Melee . | . . . . . . . . . . . . . . . . . . . . . . . . . . . . . . . . . Uniques/NPCs Destroyed . | . . . . . . . . . . . . . . . . . . . . . . . . . . . . . . . . . Combat | -11 -10 -10 -10 -9 -8 -8 -8 -8 -8 -7 -7 -7 -7 -6 -6 -5 -5 -5 -5 -4 -4 -4 -4 -4 -4 -4 -4 -3 -3 -3 -2 -1 -------- Run | Yrd Mat Min Exi Min Mat Gar Mat Sto Gar Fac Gar Fac Gar Fac Gar Fac Gar Fac Gar Fac Was Fac Gar Fac Upp Upp Zhi Pro Res DSF Res Acc Hostile Shots Fired 2319 | . 37 . . 12 76 71 59 18 3 . 44 18 167 10 85 215 51 150 153 69 . 68 66 118 21 9 . 20 . 103 387 289 Missed 585 | . 7 . . 2 23 22 12 3 2 . 14 9 42 3 26 44 12 42 45 25 . 18 13 23 6 4 . 7 . 34 91 56 Hits 1734 | . 30 . . 10 53 49 47 15 1 . 30 9 125 7 59 171 39 108 108 44 . 50 53 95 15 5 . 13 . 69 296 233 Melee 23 | . . . . 7 1 3 . . . . . . 1 . . . . . . . . . 2 4 . . . . . . . 5 Projectile 1711 | . 30 . . 3 52 46 47 15 1 . 30 9 124 7 59 171 39 108 108 44 . 50 51 91 15 5 . 13 . 69 296 228 AOE 6 | . . . . . . 2 . . . . . . 1 . . . . . . 2 . . . . . . . . . . . 1 Critical Strikes 70 | . . . . . 3 3 2 . . . . 1 2 . . 7 2 3 2 3 . 4 3 5 1 1 . . . 1 11 16 Actively Blocked 42 | . . . . . . . . . . . . . . . . . . . . . . 4 3 5 1 1 . . . 1 11 16 Part Disruptions 2 | . . . . . . . . . . . . 1 . . . . . . . . . . . . . . . . . . 1 . Damage Taken 33318 | . 322 . . 300 734 903 639 165 7 . 456 206 1666 122 757 3078 747 2064 1811 749 . 888 1130 2008 248 161 . 353 . 1618 7012 5174 Core 1979 | . 35 . . 11 50 88 110 . . . 53 6 134 67 28 180 16 140 151 81 . 60 91 53 47 . . . . 115 385 78 Absorbed by Shields 1325 | . . . . . 116 28 160 60 . . 52 . . 20 7 270 140 105 251 . . . . . . . . . . 80 . 36 Reduced by Siege Mode 2041 | . . . . . . . . . . . . . 159 . 73 275 21 127 5 . . 94 139 255 . . . . . 45 495 353 Ignored by Resistances 103 | . . . . . . . . . . . . . . . . 43 . . 22 34 . 4 . . . . . . . . . . Regen/Repaired (Parts) 2754 | . . . . . . . 245 . . . . 66 38 . . 303 . 309 . . . 951 . 390 96 119 . 237 . . . . Core Remaining (%) 76 | 100 . . . 81 . . . . 54 . . . 72 . 88 . . . 51 . . . . . . . . 71 . 91 66 95 Volleys Fired 1407 | 7 49 . . 10 53 62 75 17 10 2 33 18 67 52 48 104 51 104 48 30 . 62 54 69 28 4 . 8 20 14 184 124 Largest 4 | 2 2 . . 2 2 2 2 2 2 1 3 3 3 3 3 3 3 3 3 3 . 3 3 3 3 3 . 2 1 4 4 4 Hottest 352 | 70 70 . . 85 130 86 86 136 86 5 111 111 118 143 121 156 170 160 184 250 . 250 120 190 190 190 . 80 120 271 341 352 Shots Fired 2914 | 14 95 . . 11 104 94 144 29 13 2 66 32 171 86 95 276 99 221 108 42 1 106 121 173 37 9 . 11 20 44 379 311 Gun 1554 | 14 92 . . 10 94 78 138 25 9 . 56 24 152 40 79 218 34 146 25 . . 5 109 123 11 5 . 5 . 17 45 . Cannon 1130 | . . . . . 8 3 2 4 1 . 1 . 15 33 2 45 48 57 74 34 1 83 5 48 18 3 . . 18 24 309 294 Launcher 73 | . 3 . . 1 2 6 4 . 1 . 2 . 3 . 8 . . . 6 1 . 2 4 . 5 1 . 6 . 3 6 9 Special 157 | . . . . . . 7 . . 2 2 7 8 1 13 6 13 17 18 3 7 . 16 3 2 3 . . . 2 . 19 8 Kinetic 1714 | 7 91 . . 3 58 31 69 12 4 . 33 16 127 38 55 252 55 144 67 9 . 51 109 123 11 5 . 5 . 33 183 123 Thermal 960 | 7 1 . . 7 44 47 71 17 6 . 23 8 40 33 26 10 27 59 31 25 1 35 5 48 18 3 . . 18 8 171 171 Explosive 70 | . 3 . . 1 2 6 1 . 1 . 2 . 3 . 8 . . . 6 1 . 2 4 . 5 1 . 6 . 3 6 9 Electromagnetic 13 | . . . . . . 3 3 . . . 1 . . 2 . 1 . . 1 . . 2 . . . . . . . . . . Robot Hit Streak 37 | 9 15 . . 6 24 7 10 10 4 6 17 11 15 11 11 23 8 17 8 6 . 21 10 17 9 5 . 6 4 24 37 22 Robot Miss Streak 6 | 1 6 . . 5 4 3 2 2 1 . 4 3 3 5 4 3 5 5 5 1 1 3 3 3 2 1 . 2 . 1 5 4 Penetration Max 1 | . . . . . . . . . . . . . . . . 1 . 1 1 . . . 1 1 . . . . . . 1 . Secondary Targets 27 | . 1 . . . 3 4 1 1 . . 2 . 1 . 2 3 . 1 . . . . 2 4 1 . . . . 1 . . Max Gunslinging Chain 1 | . 1 . . . 1 1 1 1 . . 1 . 1 . 1 1 . 1 . . . . 1 1 1 . . . . 1 . . Shots Hit Robots 1759 | 12 59 . . 9 86 55 84 20 6 2 34 24 139 44 49 177 55 131 58 22 14 68 66 108 12 6 . 3 2 32 191 191 Core Hits 936 | 3 27 . . 12 51 35 50 8 6 . 26 6 65 16 27 94 17 61 34 15 3 29 38 44 14 5 . 16 . 27 96 111 Critical Kills 41 | . . . . . . . . . . . . . 1 . . 5 . 5 . . . . 6 12 1 1 . 1 . 2 3 4 Critical Parts Destroyed 50 | . . . . . . . . . . . . . 1 . . 4 2 8 1 . . . 11 17 1 1 . . . 1 3 . Critical Strikes 144 | . . . . . 1 1 3 1 . . 3 2 3 . . 12 6 21 7 . 1 4 17 29 2 3 . 1 . 4 17 6 Burn 12 | . . . . . 1 1 3 1 . . 3 2 . . . 1 . . . . . . . . . . . . . . . . Meltdown 7 | . . . . . . . . . . . . . . . . . . . . . . . . 1 . 1 . . . . 1 4 Destroy 85 | . . . . . . . . . . . . . 2 . . 9 2 13 1 . . . 17 28 2 2 . 1 . 3 5 . Blast 38 | . . . . . . . . . . . . . . . . 2 4 8 6 . . 4 . . . . . . . 1 11 2 Sever 1 | . . . . . . . . . . . . . 1 . . . . . . . . . . . . . . . . . . . Impale 1 | . . . . . . . . . . . . . . . . . . . . . 1 . . . . . . . . . . . Melee Attacks 64 | . . . . . 6 10 1 . . . . 1 24 . . 1 . 1 . 6 14 . . . . . . . . . . . Impact . | . . . . . . . . . . . . . . . . . . . . . . . . . . . . . . . . . Slashing 36 | . . . . . 6 . 1 . . . . 1 24 . . 1 . 1 . 2 . . . . . . . . . . . . Piercing 18 | . . . . . . . . . . . . . . . . . . . . 4 14 . . . . . . . . . . . Sneak Attacks 13 | . . . . . 1 6 . . . . . . . . . . . 1 . 3 2 . . . . . . . . . . . Combat Hostiles . | . . . . . . . . . . . . . . . . . . . . . . . . . . . . . . . . . Follow-up Attacks . | . . . . . . . . . . . . . . . . . . . . . . . . . . . . . . . . . Damage Inflicted 64806 | 146 955 . . 220 1905 1453 2029 401 286 . 924 359 4593 1490 1952 4838 1400 3164 3008 1032 749 2850 2250 3467 870 451 . 1334 . 2279 10486 9915 Guns 21350 | 146 735 . . 82 1279 828 1535 358 60 . 530 322 1983 384 969 3668 403 2251 417 . . 55 1779 2311 154 76 . 27 . 282 716 . Cannons 23574 | . . . . . 71 15 . 25 . . 1 . 341 461 . 767 997 841 1324 504 . 1711 42 1156 50 82 . . . 819 6766 7601 Explosions 16643 | . 202 . . 138 468 610 438 . 226 . 393 . 511 638 983 227 . . 1267 346 . 1084 429 . 666 293 . 1307 . 1178 2966 2273 Melee 2822 | . . . . . 61 . . . . . . . 1758 . . . . 72 . 182 749 . . . . . . . . . . . Ramming 417 | . 18 . . . 26 . 56 18 . . . 37 . 7 . 176 . . . . . . . . . . . . . . 38 41 Kinetic 28572 | 60 722 . . 11 761 388 735 118 . . 280 197 1738 384 704 4253 909 2272 1168 264 . 1111 1779 2311 154 76 . 27 . 761 4175 3214 Thermal 16621 | 86 13 . . 71 589 440 945 265 60 . 250 125 586 461 265 175 491 820 623 240 . 572 42 1156 50 82 . . . 340 3487 4387 Explosive 14536 | . 202 . . 138 468 271 90 . 226 . 254 . 511 . 983 . . . 1031 346 . 1084 429 . 666 293 . 1307 . 1178 2786 2273 Electromagnetic 1838 | . . . . . . 354 203 . . . 140 . . 638 . 234 . . 186 . . 83 . . . . . . . . . . Impact . | . . . . . . . . . . . . . . . . . . . . . . . . . . . . . . . . . Slashing 1955 | . . . . . 61 . . . . . . . 1758 . . . . 72 . 64 . . . . . . . . . . . . Piercing 867 | . . . . . . . . . . . . . . . . . . . . 118 749 . . . . . . . . . . . Highest Corruption 19 | . . . . 2 . 8 8 1 1 . 4 4 5 6 6 15 15 17 13 3 3 4 4 16 18 19 19 19 . . 14 16 Average Corruption 7 | . . . . 2 . 5 1 1 1 . 3 4 4 5 6 8 15 14 12 2 3 3 4 6 16 18 19 19 . . 7 10 Corruption Purged 18 | . . . . . . . 8 . . . . . . . . . . 10 . . . . . . . . . . . . . . Corruption Blocked . | . . . . . . . . . . . . . . . . . . . . . . . . . . . . . . . . . Effects 836 | . . . . 5 . 26 23 5 6 . 26 27 41 9 24 82 39 119 49 3 15 23 30 42 26 21 12 22 . . 89 72 Message Errors 179 | . . . . . . 6 4 1 3 . 11 9 11 5 3 13 7 22 11 . 4 8 7 11 5 3 3 5 . . 13 14 Matter Fused 196 | . . . . 1 . 6 4 . 1 . 3 3 12 3 10 20 11 32 12 . 2 1 8 8 6 6 3 4 . . 22 18 Heat Flow Errors 87 | . . . . 1 . 3 3 . . . 1 3 4 . 2 6 6 9 6 1 3 6 1 3 4 2 . 2 . . 15 6 Energy Discharges 104 | . . . . 2 . 2 5 2 1 . 4 4 1 . 4 12 4 16 3 . 1 1 4 5 2 2 3 3 . . 11 12 Parts Rejected 11 | . . . . . . . 1 . . . . 1 1 . . . 1 2 . . . . 1 . . . . . . . 1 3 Parts Fused 8 | . . . . . . 1 . . . . . 1 . . . . . 2 . . 1 . . . . 1 . 1 . . 1 . Data Loss (minor) 104 | . . . . . . 4 5 . . . 4 2 7 1 2 5 3 18 8 2 1 2 3 6 3 5 1 3 . . 12 7 Data Loss (major) 37 | . . . . 1 . 1 . . . . 2 . 2 . 1 5 3 5 2 . 1 2 1 . 2 1 1 1 . . 4 2 Misfires 38 | . . . . . . 2 . . 1 . . 1 1 . 1 9 1 1 2 . 1 3 4 3 2 . . 1 . . 2 3 Alerts 24 | . . . . . . 1 1 1 . . 1 1 1 . 1 3 . 2 1 . 1 . 1 1 . . 1 2 . . 3 2 Misdirections 4 | . . . . . . . . . . . . . . . . 2 . 1 . . . . . . . . . . . . 1 . Weapon Failures 44 | . . . . . . . . 1 . . . 2 1 . . 7 3 9 4 . . . . 5 2 1 . . . . 4 5 Overload Shots . | . . . . . . . . . . . . . . . . . . . . . . . . . . . . . . . . . Overflow Damage 2515 | . 6 . . . 93 27 31 . . . 10 . 17 34 88 35 13 8 53 109 192 362 126 56 . . . 68 . 52 942 193 Projectiles 771 | . . . . . . . . . . . . . . 19 . 11 13 6 25 57 . 143 . 56 . . . . . . 365 76 Explosions 1459 | . 6 . . . 62 27 31 . . . 10 . 5 15 88 . . . 28 29 . 219 126 . . . . 68 . 52 577 116 Melee 285 | . . . . . 31 . . . . . . . 12 . . 24 . 2 . 23 192 . . . . . . . . . . 1 Knockbacks 80 | . 1 . . . . . . . . . . 1 . . . 10 1 6 9 3 . 13 . . . . . . . 1 23 12 Impact 5 | . 1 . . . . . . . . . . 1 . . . 3 . . . . . . . . . . . . . . . . Kinetic 70 | . . . . . . . . . . . . . . . . 6 1 6 9 2 . 13 . . . . . . . 1 21 11 Secondary 5 | . . . . . . . . . . . . . . . . 1 . . . 1 . . . . . . . . . . 2 1 Self-Inflicted Damage 737 | . . . . 48 57 120 17 . . . . . . . 49 . . . . 74 . . 156 . . . . 43 . . 161 12 Shots 15 | . . . . 1 2 2 1 . . . . . . . 1 . . . . 2 . . 1 . . . . 1 . . 3 1 Rammed 28 | . 7 . . . 3 . 4 1 . . . 2 . 1 . 7 . . . . . . . . . . . . . . 2 1 Targets Rammed 29 | . 7 . . . 4 . 4 1 . . . 2 . 1 . 7 . . . . . . . . . . . . . . 2 1 Kicked . | . . . . . . . . . . . . . . . . . . . . . . . . . . . . . . . . . Crushed 1 | . . . . . 1 . . . . . . . . . . . . . . . . . . . . . . . . . . . Highest Temperature 391 | 27 9 . . 166 99 157 269 272 70 . 251 250 387 97 164 209 160 249 231 150 217 297 162 299 143 227 . 236 . 39 391 339 Average Temperature 74 | 13 2 . . 32 20 39 64 102 27 . 73 81 110 31 46 87 36 63 65 40 97 105 43 92 70 124 . 107 . 14 125 83 Received Heat Transfer 4105 | . 126 . . 18 322 220 247 81 . . 66 48 339 4 69 284 241 171 323 51 . 9 108 405 18 18 . 36 . 250 405 246 Effects 10 | . . . . . . . . 1 . . 1 . 1 . . . . . . . . 4 . . . . . . . . 3 . Shutdowns 1 | . . . . . . . . . . . . . . . . . . . . . . . . . . . . . . . 1 . Energy Bleed 5 | . . . . . . . . 1 . . . . 1 . . . . . . . . 1 . . . . . . . . 2 . Interference 4 | . . . . . . . . . . . 1 . . . . . . . . . . 3 . . . . . . . . . . Siege Activations 75 | . . . . . . . . . . . . . 6 2 6 11 3 9 1 . . 4 5 7 . . . . . 1 9 11 Total Turns 1542 | . . . . . . . . . . . . . 164 36 94 250 45 169 2 . . 70 109 110 . . . . . 26 162 305 Longest Duration 110 | . . . . . . . . . . . . . 36 31 23 64 18 52 2 . . 37 35 28 . . . . . 26 75 110 Martial Activations . | . . . . . . . . . . . . . . . . . . . . . . . . . . . . . . . . . Shielding Activations . | . . . . . . . . . . . . . . . . . . . . . . . . . . . . . . . . . Robots Disrupted . | . . . . . . . . . . . . . . . . . . . . . . . . . . . . . . . . . Combat Hostiles . | . . . . . . . . . . . . . . . . . . . . . . . . . . . . . . . . . Robots Corrupted 4 | . . . . . . . . . . . . . . 2 . 1 . . . . . . . . . . . . . . . 1 Combat Hostiles 2 | . . . . . . . . . . . . . . 2 . . . . . . . . . . . . . . . . . . Parts Fried 14 | . . . . . . 1 . . . . . . . 4 . 4 . . 2 . . . . . . . . . . . . 3 Impact Corruptions 3 | . . . . . . . . . . . . . . . . 2 . . . . . . . . . . . . . . . 1 Robots Melted 7 | . . . . . . . . . . . . . . . . . . . . . . . . 1 . 1 . . . . 1 4 Combat Hostiles 7 | . . . . . . . . . . . . . . . . . . . . . . . . 1 . 1 . . . . 1 4 Parts Melted 39 | . . . . 1 4 3 4 2 . . 1 2 . . . 2 2 1 . . . . . 3 . 1 . . . . 4 9 Heat Transferred 18689 | 259 37 . . 90 1275 851 1852 555 111 . 666 370 888 700 424 370 498 1184 642 222 . 111 37 962 37 74 . . . 296 2653 3525 Parts Sabotaged . | . . . . . . . . . . . . . . . . . . . . . . . . . . . . . . . . . Parts Stolen . | . . . . . . . . . . . . . . . . . . . . . . . . . . . . . . . . . Parts Stripped . | . . . . . . . . . . . . . . . . . . . . . . . . . . . . . . . . . Power Chain Reactions 6 | . . . . . . . 2 . . . 1 . . . . . . . 1 1 . . . . . . . . . . 1 . Latent Energy Used 1222 | . . . . . . 400 . . . . 92 . . 396 . 200 . . 134 . . . . . . . . . . . . . LE Corruption 20 | . . . . . . 7 . . . . 2 . . 6 . 3 . . 2 . . . . . . . . . . . . . Alert | -11 -10 -10 -10 -9 -8 -8 -8 -8 -8 -7 -7 -7 -7 -6 -6 -5 -5 -5 -5 -4 -4 -4 -4 -4 -4 -4 -4 -3 -3 -3 -2 -1 ------- Run | Yrd Mat Min Exi Min Mat Gar Mat Sto Gar Fac Gar Fac Gar Fac Gar Fac Gar Fac Gar Fac Was Fac Gar Fac Upp Upp Zhi Pro Res DSF Res Acc Maximum Alert Level 4 | . . . . . 1 3 2 1 1 . 3 2 4 2 3 2 2 2 3 2 . 1 3 3 . . . . . 1 4 4 Low Security (%) 32 | 100 100 100 . 100 92 17 29 6 30 100 16 . . 4 . . . 84 . . 100 78 4 . . . . . 100 81 43 . Level 1 18 | . . . . . 7 11 36 93 69 . 2 67 . 42 12 31 . 12 22 62 . 21 14 22 . . . . . 18 1 8 Level 2 32 | . . . . . . 46 34 . . . 31 32 42 52 40 68 100 2 44 37 . . 50 61 . . . . . . 23 45 Level 3 13 | . . . . . . 24 . . . . 49 . 32 . 46 . . . 32 . . . 31 15 . . . . . . 23 32 Level 4 2 | . . . . . . . . . . . . . 25 . . . . . . . . . . . . . . . . . 7 12 Level 5 . | . . . . . . . . . . . . . . . . . . . . . . . . . . . . . . . . . High Security . | . . . . . . . . . . . . . . . . . . . . . . . . . . . . . . . . . Max Security . | . . . . . . . . . . . . . . . . . . . . . . . . . . . . . . . . . Sterilizations 1 | . . . . . . . . . . . . . . . . . . . . . . . . . . . . . . 1 . . Peak Influence 1311 | 5 162 19 . 50 218 916 523 267 282 147 955 685 1222 641 998 647 661 407 918 481 152 263 893 797 . . . . 60 341 1219 1311 Initial 728 | . . 19 . . . 113 446 219 121 147 . 501 471 641 289 523 451 346 282 481 152 . 144 468 . . . . 60 3 180 728 Average 394 | 1 49 6 . 12 79 532 304 228 208 45 601 372 823 378 670 472 570 98 557 371 28 76 622 493 . . . . 12 114 443 709 Influence Increases 17104 | 10 390 . . 65 596 853 861 138 161 . 955 618 891 617 749 1132 320 824 776 328 . 564 829 825 271 121 . 201 35 378 1972 1624 Destroy 0b10 Robot/C 9280 | . 200 . . 20 340 480 520 80 120 . 440 260 520 260 440 640 160 460 500 160 . 280 360 380 220 100 . 180 . 260 940 960 Destroy 0b10 Robot/NC 570 | 10 35 . . 10 35 5 45 5 . . . 35 30 30 . 55 . 40 . 30 . 30 . 35 . . . . . . 80 60 Destroy Leader 1538 | . 50 . . . 86 20 170 22 10 . 30 74 40 76 30 140 20 126 50 20 . 50 30 84 30 10 . 10 . 30 162 168 Allied During Kill 559 | . . . . . . 34 16 . 1 . 77 192 15 76 11 7 18 18 . . . . 28 . 21 11 . 11 . 3 13 7 Successful Hack 452 | . 34 . . . 24 28 15 28 . . 14 24 14 58 14 62 . 48 . . . 32 14 26 . . . . 5 . . 12 Disable Machine 885 | . 45 . . . 60 . 75 . 15 . 15 15 . 30 15 45 . 60 45 60 . 75 30 105 . . . . . 15 90 90 Anti-Garrison Action 1250 | . . . . . . 200 . . . . 350 . 250 . 100 . 100 . 50 . . . 200 . . . . . . . . . Destroy Structure 2180 | . 26 . . 5 36 86 20 3 15 . 14 18 22 57 94 138 22 72 131 58 . 82 152 150 . . . . 30 70 552 327 Partial Spotted 15 | . . . . . . . . . . . . . . . . . . . . . . 15 . . . . . . . . . . Lose Combat Pursuer 375 | . . . . 30 15 . . . . . 15 . . 30 45 45 . . . . . . 15 45 . . . . . . 135 . Influence Decreases 15793 | 10 338 52 . 65 422 111 1257 471 66 282 . 900 342 1426 164 1485 304 1082 261 809 437 357 143 955 605 280 270 110 121 62 1078 1528 Entered New Map 6038 | . . 33 . . . 61 470 301 66 135 . 454 202 581 124 475 194 315 121 437 285 . 63 425 283 82 270 . 31 2 141 487 Time Decay 7057 | 10 338 19 . 65 392 . 697 170 . 147 . 416 . 490 . 690 . 537 . 262 152 307 . 470 302 198 . 80 90 . 599 626 Lost Part 670 | . . . . . 30 10 10 . . . . 10 20 10 10 60 10 30 100 50 . 10 20 30 . . . . . 40 180 40 Lost Ally 1178 | . . . . . . 40 80 . . . . 20 120 70 30 110 100 50 40 60 . 40 60 30 20 . . 30 . 20 158 100 Purge Threat 850 | . . . . . . . . . . . . . . 275 . 150 . 150 . . . . . . . . . . . . . 275 Squads Dispatched 94 | . . . . . 3 . 3 . . 2 . 7 . 7 . 14 . 12 . 4 . 7 . 5 . . . 1 . 2 18 9 Investigation 17 | . . . . . 1 . 2 . . 1 . 2 . 1 . 2 . 2 . 1 . 1 . 2 . . . . . . 2 . Extermination 32 | . . . . . . . . . . 1 . 2 . 1 . 6 . 6 . 1 . 3 . 2 . . . . . . 6 4 Reinforcement 26 | . . . . . 2 . . . . . . 2 . 5 . 2 . 2 . 2 . 3 . . . . . . . 2 5 1 Assault 13 | . . . . . . . . . . . . . . . . 3 . . . . . . . 1 . . . 1 . . 5 3 Garrison 6 | . . . . . . . 1 . . . . 1 . . . 1 . 2 . . . . . . . . . . . . . 1 Intercept . | . . . . . . . . . . . . . . . . . . . . . . . . . . . . . . . . . Searches Triggered . | . . . . . . . . . . . . . . . . . . . . . . . . . . . . . . . . . Construction Impeded 5 | . . . . . . . . . . . . 1 . 2 . . . . . . . . . . . . . . . . 1 1 Haulers Reinforced 5 | . . . . . . . . . . . . . . 2 . . . 1 . . . 1 . . . . . . . . 1 . Active Scanning Responses . | . . . . . . . . . . . . . . . . . . . . . . . . . . . . . . . . . Cargo Convoy Interrupts 1 | . . . . . . . . . . . . . . . . 1 . . . . . . . . . . . . . . . . Alert ID Control Effect 20 | . . . . . . . . . . . . . . . . 1 2 3 1 . . . 8 . 1 . . . . . 4 . Stealth | -11 -10 -10 -10 -9 -8 -8 -8 -8 -8 -7 -7 -7 -7 -6 -6 -5 -5 -5 -5 -4 -4 -4 -4 -4 -4 -4 -4 -3 -3 -3 -2 -1 --------- Run | Yrd Mat Min Exi Min Mat Gar Mat Sto Gar Fac Gar Fac Gar Fac Gar Fac Gar Fac Gar Fac Was Fac Gar Fac Upp Upp Zhi Pro Res DSF Res Acc Distress Signals 17 | . 3 . . 1 . . 2 . . . . 3 . 1 . . . 2 . . . 1 1 . . . . . . . 3 . Communications Jammed . | . . . . . . . . . . . . . . . . . . . . . . . . . . . . . . . . . Distress Signals . | . . . . . . . . . . . . . . . . . . . . . . . . . . . . . . . . . Times Spotted 663 | . 18 . . 5 20 26 43 4 4 1 26 20 25 24 27 60 16 35 25 17 3 30 26 23 13 3 . 8 . 17 86 58 Peak Tracking Total 10 | . 4 . . 2 4 7 6 2 4 1 6 5 7 3 5 6 3 4 5 6 . 7 5 6 4 3 . 7 . 8 10 6 Tactical Retreats 17 | . . . . 1 1 . . . . . 1 . . 1 2 3 . . . . . . 1 2 . . . . . . 5 . Traps | -11 -10 -10 -10 -9 -8 -8 -8 -8 -8 -7 -7 -7 -7 -6 -6 -5 -5 -5 -5 -4 -4 -4 -4 -4 -4 -4 -4 -3 -3 -3 -2 -1 ------- Run | Yrd Mat Min Exi Min Mat Gar Mat Sto Gar Fac Gar Fac Gar Fac Gar Fac Gar Fac Gar Fac Was Fac Gar Fac Upp Upp Zhi Pro Res DSF Res Acc Traps Triggered 41 | . . . . . . 1 . . 2 1 9 . 3 4 1 2 1 1 4 1 . 1 1 . . 1 . . . 1 3 4 Indirectly . | . . . . . . . . . . . . . . . . . . . . . . . . . . . . . . . . . Trap Hack Attempts . | . . . . . . . . . . . . . . . . . . . . . . . . . . . . . . . . . Triggered . | . . . . . . . . . . . . . . . . . . . . . . . . . . . . . . . . . Disarmed . | . . . . . . . . . . . . . . . . . . . . . . . . . . . . . . . . . Reprogrammed . | . . . . . . . . . . . . . . . . . . . . . . . . . . . . . . . . . Reused . | . . . . . . . . . . . . . . . . . . . . . . . . . . . . . . . . . Traps Extracted . | . . . . . . . . . . . . . . . . . . . . . . . . . . . . . . . . . Installed . | . . . . . . . . . . . . . . . . . . . . . . . . . . . . . . . . . Triggered . | . . . . . . . . . . . . . . . . . . . . . . . . . . . . . . . . . Machines | -11 -10 -10 -10 -9 -8 -8 -8 -8 -8 -7 -7 -7 -7 -6 -6 -5 -5 -5 -5 -4 -4 -4 -4 -4 -4 -4 -4 -3 -3 -3 -2 -1 ---------- Run | Yrd Mat Min Exi Min Mat Gar Mat Sto Gar Fac Gar Fac Gar Fac Gar Fac Gar Fac Gar Fac Was Fac Gar Fac Upp Upp Zhi Pro Res DSF Res Acc Machines Disabled 79 | . 3 . . . 4 4 5 . 1 . 6 1 3 2 2 3 2 4 4 4 . 5 5 7 . . . 1 . 1 6 6 Max in Single Turn 3 | . 2 . . . 2 1 1 . 1 . 1 . 1 1 1 1 1 1 1 1 . 2 1 3 . . . 1 . 1 1 1 Garrison Access 7 | . . . . . . . 1 . . . . . . 1 . 1 . 1 . . . . . . . . . . . . 2 1 Garrison Relay 16 | . . . . . . 2 . . . . 5 . 3 . 1 . 2 . 1 . . . 2 . . . . . . . . . Machines Repaired . | . . . . . . . . . . . . . . . . . . . . . . . . . . . . . . . . . Machines Dismantled . | . . . . . . . . . . . . . . . . . . . . . . . . . . . . . . . . . Machines Sabotaged . | . . . . . . . . . . . . . . . . . . . . . . . . . . . . . . . . . Overloaded Fab Kills . | . . . . . . . . . . . . . . . . . . . . . . . . . . . . . . . . . Hacking | -11 -10 -10 -10 -9 -8 -8 -8 -8 -8 -7 -7 -7 -7 -6 -6 -5 -5 -5 -5 -4 -4 -4 -4 -4 -4 -4 -4 -3 -3 -3 -2 -1 --------- Run | Yrd Mat Min Exi Min Mat Gar Mat Sto Gar Fac Gar Fac Gar Fac Gar Fac Gar Fac Gar Fac Was Fac Gar Fac Upp Upp Zhi Pro Res DSF Res Acc Machines Accessed 113 | . 8 . 2 . 7 2 9 3 1 2 3 2 1 9 2 13 1 11 . 1 . 9 2 5 . . 4 . 1 . 10 5 Terminals 60 | . 6 . . . 5 2 6 2 1 1 3 . 1 5 2 5 1 5 . . . 3 2 1 . . . . 1 . 5 3 Fabricators 12 | . . . . . . . . . . . . . . . . 3 . 3 . 1 . 2 . 2 . . . . . . 1 . Repair Stations 9 | . . . . . . . 1 . . . . 1 . 1 . 1 . 1 . . . 3 . 1 . . . . . . . . Recycling Units 5 | . 2 . . . . . . . . . . . . . . 2 . . . . . . . . . . . . . . 1 . Scanalyzers 7 | . . . . . 1 . 1 . . . . . . 1 . 1 . . . . . . . 1 . . . . . . 1 1 Garrison Access 14 | . . . . . 1 . 1 1 . 1 . 1 . 2 . 1 . 2 . . . 1 . . . . . . . . 2 1 Total Hacks 277 | . 22 . 2 . 19 4 24 7 2 4 5 4 1 34 4 31 1 24 . 6 . 28 3 15 . . 13 . 2 . 14 8 Successful 159 | . 10 . 2 . 12 2 10 4 . 2 1 3 1 20 1 23 . 12 . 3 . 20 1 10 . . 13 . 1 . 5 3 Failed 117 | . 12 . . . 7 2 14 3 2 2 4 1 . 14 3 8 1 12 . 3 . 8 2 4 . . . . 1 . 9 5 Catastrophic 25 | . 4 . . . . . 5 . 1 1 . . . 1 2 . 1 1 . . . 1 1 . . . . . . . 5 2 Database Lockouts 1 | . . . . . . . . . . . . . . . . . . . . . . . . 1 . . . . . . . . Manual 131 | . 20 . 1 . 10 . 19 5 . 2 . 2 . 16 . 12 . 15 . . . 11 . 5 . . . . . . 8 5 Terminals 161 | . 20 . . . 14 4 19 5 2 1 5 . 1 24 4 12 1 14 . . . 15 3 4 . . . . 2 . 6 5 Fabricators 36 | . . . . . . . . . . . . . . . . 10 . 7 . 6 . 4 . 6 . . . . . . 3 . Repair Stations 20 | . . . . . . . 3 . . . . 1 . 4 . 1 . 1 . . . 7 . 3 . . . . . . . . Recycling Units 7 | . 2 . . . . . . . . . . . . . . 3 . . . . . . . . . . . . . . 2 . Scanalyzers 14 | . . . . . 3 . 1 . . . . . . 3 . 3 . . . . . . . 2 . . . . . . 1 1 Garrison Access 24 | . . . . . 2 . 1 2 . 3 . 3 . 3 . 2 . 2 . . . 2 . . . . . . . . 2 2 Terminal Hacks 42 | . 1 . 2 . 3 2 . . . . 1 . 1 7 1 3 . . . . . 6 1 . . . 13 . 1 . . . Record 2 | . . . 1 . . . . . . . . . . . . . . . . . . . . . . . 1 . . . . . Part Schematic 5 | . 1 . . . . . . . . . . . . . . . . . . . . . . . . . 4 . . . . . Robot Analysis 5 | . . . . . . . . . . . . . . . . 1 . . . . . . . . . . 4 . . . . . Prototype ID Bank 8 | . . . . . 2 . . . . . . . . 1 . . . . . . . 1 . . . . 4 . . . . . Open DSF 1 | . . . . . . . . . . . . . . . . . . . . . . . . . . . . . 1 . . . Branch Access Points 1 | . . . . . . . . . . . . . . 1 . . . . . . . . . . . . . . . . . . Emergency Access Points 3 | . . . . . . 1 . . . . . . . . 1 . . . . . . . 1 . . . . . . . . . Terminal Index 4 | . . . . . 1 . . . . . . . . 1 . 1 . . . . . 1 . . . . . . . . . . Repair Station Index 1 | . . . . . . . . . . . . . . 1 . . . . . . . . . . . . . . . . . . Garrison Index 2 | . . . . . . . . . . . . . . 1 . . . . . . . 1 . . . . . . . . . . Unreport Threat 1 | . . . . . . . . . . . . . . . . 1 . . . . . . . . . . . . . . . . Transport Status 1 | . . . . . . . . . . . . . . . . . . . . . . 1 . . . . . . . . . . Hauler Manifests 2 | . . . . . . . . . . . . . . 1 . . . . . . . 1 . . . . . . . . . . Registered Components 1 | . . . . . . . . . . . . . . . . . . . . . . 1 . . . . . . . . . . Zone Layout 1 | . . . . . . . . . . . . . . 1 . . . . . . . . . . . . . . . . . . Garrison Registry 1 | . . . . . . 1 . . . . . . . . . . . . . . . . . . . . . . . . . . Patrol Navigation 2 | . . . . . . . . . . . 1 . 1 . . . . . . . . . . . . . . . . . . . Proto ID Catalog 1 | . . . 1 . . . . . . . . . . . . . . . . . . . . . . . . . . . . . Fabricator Hacks 21 | . . . . . . . . . . . . . . . . 6 . 3 . 3 . 2 . 5 . . . . . . 2 . Network Status 6 | . . . . . . . . . . . . . . . . 1 . 1 . 1 . 1 . 1 . . . . . . 1 . Load Schematic 10 | . . . . . . . . . . . . . . . . 3 . 2 . 1 . 1 . 2 . . . . . . 1 . Build 5 | . . . . . . . . . . . . . . . . 2 . . . 1 . . . 2 . . . . . . . . Repair Station Hacks 10 | . . . . . . . 2 . . . . . . 1 . . . . . . . 5 . 2 . . . . . . . . Scan Component 6 | . . . . . . . 1 . . . . . . 1 . . . . . . . 3 . 1 . . . . . . . . Repair 4 | . . . . . . . 1 . . . . . . . . . . . . . . 2 . 1 . . . . . . . . Recycling Unit Hacks 3 | . 2 . . . . . . . . . . . . . . 1 . . . . . . . . . . . . . . . . Retrieve Components 3 | . 2 . . . . . . . . . . . . . . 1 . . . . . . . . . . . . . . . . Scanalyzer 10 | . . . . . 3 . 1 . . . . . . 2 . 3 . . . . . . . 1 . . . . . . . . Insert Component 3 | . . . . . 1 . . . . . . . . 1 . 1 . . . . . . . . . . . . . . . . Analyze 4 | . . . . . 1 . . . . . . . . 1 . 2 . . . . . . . . . . . . . . . . Retrieve Study 3 | . . . . . 1 . 1 . . . . . . . . . . . . . . . . 1 . . . . . . . . Garrison Access Hacks 21 | . . . . . 1 . 1 2 . 2 . 2 . 3 . 2 . 2 . . . 2 . . . . . . . . 2 2 Unlock Access 8 | . . . . . 1 . . 1 . 1 . 1 . 1 . 1 . 1 . . . 1 . . . . . . . . . . Seal Access 6 | . . . . . . . 1 . . . . . . 1 . . . 1 . . . . . . . . . . . . 2 1 Coupler Status 7 | . . . . . . . . 1 . 1 . 1 . 1 . 1 . . . . . 1 . . . . . . . . . 1 Unauthorized Hacks 52 | . 7 . . . 5 . 6 2 . . . 1 . 7 . 8 . 7 . . . 5 . 2 . . . . . . 1 1 Terminals 46 | . 7 . . . 5 . 6 2 . . . . . 7 . 6 . 7 . . . 4 . 1 . . . . . . . 1 Botnet 15 | . 1 . . . 1 . 1 1 . . . . . 3 . 2 . 2 . . . 2 . 1 . . . . . . . 1 Operators 1 | . 1 . . . . . . . . . . . . . . . . . . . . . . . . . . . . . . . Skim 30 | . 5 . . . 4 . 5 1 . . . . . 4 . 4 . 5 . . . 2 . . . . . . . . . . Fabricators . | . . . . . . . . . . . . . . . . . . . . . . . . . . . . . . . . . Repair Stations 4 | . . . . . . . . . . . . 1 . . . 1 . . . . . 1 . 1 . . . . . . . . Mechanics 4 | . . . . . . . . . . . . 1 . . . 1 . . . . . 1 . 1 . . . . . . . . Recycling Units 2 | . . . . . . . . . . . . . . . . 1 . . . . . . . . . . . . . . 1 . Recyclers 2 | . . . . . . . . . . . . . . . . 1 . . . . . . . . . . . . . . 1 . Scanalyzers . | . . . . . . . . . . . . . . . . . . . . . . . . . . . . . . . . . Garrison Access . | . . . . . . . . . . . . . . . . . . . . . . . . . . . . . . . . . Data Cores Recovered 3 | . 1 . . . . . 1 . . . . 1 . . . . . . . . . . . . . . . . . . . . Used . | . . . . . . . . . . . . . . . . . . . . . . . . . . . . . . . . . Hacking Detections 88 | . 6 . . . 7 2 7 3 1 2 2 2 1 8 2 10 1 9 . 1 . 7 2 3 . . . . . . 7 5 Full Trace Events 14 | . . . . . 1 . 1 . . 1 . 1 . 1 1 2 . 2 . 1 . . . 2 . . . . . . 1 . Feedback Events 1 | . . . . . . . . . . . . . . . . . . 1 . . . . . . . . . . . . . . Corruption 1 | . . . . . . . . . . . . . . . . . . 1 . . . . . . . . . . . . . . Feedback Blocked . | . . . . . . . . . . . . . . . . . . . . . . . . . . . . . . . . . Robot Schematics Acquired . | . . . . . . . . . . . . . . . . . . . . . . . . . . . . . . . . . Robots Built . | . . . . . . . . . . . . . . . . . . . . . . . . . . . . . . . . . Authchips . | . . . . . . . . . . . . . . . . . . . . . . . . . . . . . . . . . Time . | . . . . . . . . . . . . . . . . . . . . . . . . . . . . . . . . . Total Robot Build Rating . | . . . . . . . . . . . . . . . . . . . . . . . . . . . . . . . . . Part Schematics Acquired 8 | . 1 . . . 1 . . . . . . . . 1 . 1 . . . . . . . . . . 4 . . . . . Parts Built 7 | . . . . . . . . . . . . . . . . 2 . . . 1 . . . 4 . . . . . . . . Authchips . | . . . . . . . . . . . . . . . . . . . . . . . . . . . . . . . . . Time 423 | . . . . . . . . . . . . . . . . 116 . . . 117 . . . 190 . . . . . . . . Total Part Build Rating 41 | . . . . . . . . . . . . . . . . 14 . . . 7 . . . 20 . . . . . . . . Part Studies Acquired 3 | . . . . . 1 . 1 . . . . . . . . . . . . . . . . 1 . . . . . . . . Parts Repaired 4 | . . . . . . . 1 . . . . . . . . . . . . . . 2 . 1 . . . . . . . . Time 259 | . . . . . . . 38 . . . . . . . . . . . . . . 177 . 44 . . . . . . . . Parts Recycled . | . . . . . . . . . . . . . . . . . . . . . . . . . . . . . . . . . Recycled Matter . | . . . . . . . . . . . . . . . . . . . . . . . . . . . . . . . . . Retrieved Matter . | . . . . . . . . . . . . . . . . . . . . . . . . . . . . . . . . . Retrieved Components 21 | . 20 . . . . . . . . . . . . . . 1 . . . . . . . . . . . . . . . . Parts Scanalyzed 3 | . . . . . 1 . . . . . . . . 1 . 1 . . . . . . . . . . . . . . . . Part Schematics Acquired 3 | . . . . . 1 . . . . . . . . 1 . 1 . . . . . . . . . . . . . . . . Parts Damaged . | . . . . . . . . . . . . . . . . . . . . . . . . . . . . . . . . . Bothacking | -11 -10 -10 -10 -9 -8 -8 -8 -8 -8 -7 -7 -7 -7 -6 -6 -5 -5 -5 -5 -4 -4 -4 -4 -4 -4 -4 -4 -3 -3 -3 -2 -1 ------------ Run | Yrd Mat Min Exi Min Mat Gar Mat Sto Gar Fac Gar Fac Gar Fac Gar Fac Gar Fac Gar Fac Was Fac Gar Fac Upp Upp Zhi Pro Res DSF Res Acc Used RIF Installer 9 | . . . . . . 1 . . 2 . 1 . 1 . 1 . 2 . . . . . 1 . . . . . . . . . Coupler Efficiency 1 | . . . . . . . . . . . . . . . . . 1 . . . . . . . . . . . . . . . Command Fork 1 | . . . . . . . . . . . . . 1 . . . . . . . . . . . . . . . . . . . Zone Cloak 1 | . . . . . . . . . . . . . . . . . . . . . . . 1 . . . . . . . . . Robot Detection 1 | . . . . . . . . . 1 . . . . . . . . . . . . . . . . . . . . . . . Watcher Feeds 1 | . . . . . . . . . 1 . . . . . . . . . . . . . . . . . . . . . . . Patrol Navigation 1 | . . . . . . . . . . . . . . . . . 1 . . . . . . . . . . . . . . . Alert ID Control 1 | . . . . . . . . . . . . . . . 1 . . . . . . . . . . . . . . . . . Autoassimilate 1 | . . . . . . . . . . . 1 . . . . . . . . . . . . . . . . . . . . . Robots Hacked 88 | . . . . . . 2 . . 1 1 3 3 1 5 3 7 7 8 3 4 . 10 5 2 2 . . . . 2 12 7 Non-combat 25 | . . . . . . . . . . . . 1 . 1 . 4 . 5 . 1 . 7 . 1 . . . . . . 2 3 Combat 63 | . . . . . . 2 . . 1 1 3 2 1 4 3 3 7 3 3 3 . 3 5 1 2 . . . . 2 10 4 Autoassimilated 29 | . . . . . . . . . . . 1 . 1 1 . 3 3 1 1 1 . 2 4 1 . . . . . 2 4 4 Robot Hacks Applied 68 | . . . . . . 2 . . 1 1 2 3 1 6 3 5 4 8 2 3 . 9 1 1 2 . . . . . 8 6 parse_system 1 | . . . . . . . . . . . . . 1 . . . . . . . . . . . . . . . . . . . find_chute 1 | . . . . . . . . . . . . . . . . . . . . 1 . . . . . . . . . . . . drop_inventory 10 | . . . . . . . . . . . . . . . . . . 3 . . . 5 . . . . . . . . 1 1 purge_threat 5 | . . . . . . . . . . . . . . 2 . . . 1 . . . . . . . . . . . . . 2 block_reporting 5 | . . . . . . . . . . . . . . . . 2 . . . . . 1 . . . . . . . . 1 1 amplify_resonance 2 | . . . . . . . . . . . . . . . . . . . 1 . . . . . 1 . . . . . . . formatsys_low 12 | . . . . . . . . . . . . 1 . 1 . 3 . 2 . . . 2 . 1 . . . . . . . 2 formatsys_high 32 | . . . . . . 2 . . 1 1 2 2 . 3 3 . 4 2 1 2 . 1 1 . 1 . . . . . 6 . Relay Couplers Released 70 | . . . . . . 10 . . . . 18 . 13 . 4 2 6 4 5 . . . 6 . . . . . . . 1 1 Machine Destruction 66 | . . . . . . 10 . . . . 18 . 13 . 4 2 6 . 5 . . . 6 . . . . . . . 1 1 Programmers 4 | . . . . . . . . . . . . . . . . . . 4 . . . . . . . . . . . . . . Attached 30 | . . . . . . 1 . . 1 . 2 3 . 2 2 2 3 2 1 1 . 3 2 . . . . . . . 3 2 Fabnet Peak Effective % . | . . . . . . . . . . . . . . . . . . . . . . . . . . . . . . . . . Robots Rewired 7 | . . . . . . 5 . . . . . . . 1 . . . . . . . . . . 1 . . . . . . . Allies Hacked 8 | . . . . . . 1 . . . . 1 . 1 . . . . 3 . . . 1 . . . . . . . . 1 . Hacks Repelled . | . . . . . . . . . . . . . . . . . . . . . . . . . . . . . . . . . Allies | -11 -10 -10 -10 -9 -8 -8 -8 -8 -8 -7 -7 -7 -7 -6 -6 -5 -5 -5 -5 -4 -4 -4 -4 -4 -4 -4 -4 -3 -3 -3 -2 -1 -------- Run | Yrd Mat Min Exi Min Mat Gar Mat Sto Gar Fac Gar Fac Gar Fac Gar Fac Gar Fac Gar Fac Was Fac Gar Fac Upp Upp Zhi Pro Res DSF Res Acc Total Allies 85 | . . . . . . 7 . . 1 1 5 3 1 6 3 7 7 5 2 3 . 5 5 3 2 . . . . 2 10 7 Largest Group 9 | . . . . . . 3 4 . 1 2 6 9 6 6 2 2 6 4 2 1 . 2 2 2 2 2 2 2 . 1 2 3 Highest-Rated Group 359 | . . . . . . 47 64 . 15 47 275 359 227 185 58 58 152 131 58 56 . 49 232 24 78 44 44 44 . 47 128 161 Highest-Rated Ally 116 | . . . . . . 24 16 . 15 32 95 95 95 40 41 49 41 49 29 56 . 49 116 14 64 30 30 30 . 47 64 58 Total Orders 46 | . . . . . . . . . . 2 4 5 8 . . 2 4 5 . . . 2 3 1 6 1 . 1 . . . 2 STAY 16 | . . . . . . . . . . 1 2 2 3 . . . 2 . . . . 2 2 . 1 . . . . . . 1 FOLLOW 11 | . . . . . . . . . . 1 2 2 2 . . . 2 . . . . . 1 . 1 . . . . . . . AID 19 | . . . . . . . . . . . . 1 3 . . 2 . 5 . . . . . 1 4 1 . 1 . . . 1 Ally Attacks 361 | . . . . . . 38 18 . 2 . 25 52 22 41 20 10 27 17 7 6 . 7 30 . 2 . . 4 . . 30 3 Total Damage 10020 | . . . . . . 628 179 . 59 . 870 2070 480 662 460 145 517 415 99 211 . 264 1549 . 107 . . 75 . . 1113 117 Kills 69 | . . . . . . 5 2 . 1 . 7 19 4 8 2 1 2 3 1 . . . 8 . 1 . . 1 . . 4 . Allies Corrupted 6 | . . . . . . . . . . . . . . . . 1 . 2 . . . 1 . . . . . . . . . 2 Allies Melted 3 | . . . . . . . . . . . . . 1 . . . . . . . . 1 . . . . . . . . 1 . Intel | -11 -10 -10 -10 -9 -8 -8 -8 -8 -8 -7 -7 -7 -7 -6 -6 -5 -5 -5 -5 -4 -4 -4 -4 -4 -4 -4 -4 -3 -3 -3 -2 -1 ------- Run | Yrd Mat Min Exi Min Mat Gar Mat Sto Gar Fac Gar Fac Gar Fac Gar Fac Gar Fac Gar Fac Was Fac Gar Fac Upp Upp Zhi Pro Res DSF Res Acc Active Infowar (turns) 1789 | 15 1090 88 528 66 . . . . . . . . . . . . . . . . . . . . . . . . . . 2 . Seismic 1787 | 15 1090 88 528 66 . . . . . . . . . . . . . . . . . . . . . . . . . . . . Cloaking 2 | . . . . . . . . . . . . . . . . . . . . . . . . . . . . . . . 2 . Robot Analysis Total 5 | . . . . . . . . . . . . . . . . 1 . . . . . . . . . . 4 . . . . . Derelict Logs Recovered 4 | . . 1 . 2 . . . . . . . . . . . . . . . . . . . . 1 . . . . . . . Drone Launches . | . . . . . . . . . . . . . . . . . . . . . . . . . . . . . . . . . Drone Recoveries . | . . . . . . . . . . . . . . . . . . . . . . . . . . . . . . . . . Exploration | -11 -10 -10 -10 -9 -8 -8 -8 -8 -8 -7 -7 -7 -7 -6 -6 -5 -5 -5 -5 -4 -4 -4 -4 -4 -4 -4 -4 -3 -3 -3 -2 -1 ------------- Run | Yrd Mat Min Exi Min Mat Gar Mat Sto Gar Fac Gar Fac Gar Fac Gar Fac Gar Fac Gar Fac Was Fac Gar Fac Upp Upp Zhi Pro Res DSF Res Acc Turns Passed 36020 | 69 1090 88 528 245 1175 1338 2926 343 731 501 1462 1007 1614 1296 947 2791 828 2538 936 577 849 1388 1568 1182 674 410 255 493 377 209 3439 2146 Spaces Moved 15856 | 26 547 56 329 136 487 681 1121 111 263 199 538 375 669 650 402 1251 384 1214 243 256 418 571 675 472 371 228 151 277 163 80 1586 926 Core 1 | . . . . . . . . . . . . . . . . . . . . . . . . . . . . . . . 1 . Treads 14837 | 26 547 56 329 136 487 681 1121 111 263 199 538 375 669 650 402 1251 384 1214 243 25 226 571 675 472 371 228 151 277 163 80 990 926 Legs . | . . . . . . . . . . . . . . . . . . . . . . . . . . . . . . . . . Wheels 1018 | . . . . . . . . . . . . . . . . . . . . 231 192 . . . . . . . . . 595 . Hover . | . . . . . . . . . . . . . . . . . . . . . . . . . . . . . . . . . Flight . | . . . . . . . . . . . . . . . . . . . . . . . . . . . . . . . . . Fastest Speed 125 | 160 160 160 160 160 160 162 162 237 237 237 241 241 155 160 160 160 160 160 160 125 125 160 160 160 160 160 160 160 160 160 135 146 Average Speed 173 | 160 160 160 160 160 160 162 209 237 237 239 241 241 166 160 160 160 160 161 299 177 149 160 160 160 160 160 160 160 160 164 163 149 Slowest Speed 2750 | 160 160 160 160 160 162 163 245 237 237 241 241 241 241 160 160 160 160 240 480 320 240 160 160 160 160 160 160 160 250 250 2750 225 Overloaded Moves . | . . . . . . . . . . . . . . . . . . . . . . . . . . . . . . . . . Propulsion Burnouts . | . . . . . . . . . . . . . . . . . . . . . . . . . . . . . . . . . Robots Hopped . | . . . . . . . . . . . . . . . . . . . . . . . . . . . . . . . . . Potential Cave-ins . | . . . . . . . . . . . . . . . . . . . . . . . . . . . . . . . . . Cave-ins Triggered . | . . . . . . . . . . . . . . . . . . . . . . . . . . . . . . . . . Teleports 1 | . . . . . . . . . . . . . . . . . . . . . . . . . . . . . . . 1 . Exploration Rate (%) 42 | 5 77 22 70 46 38 81 63 18 42 6 79 16 55 22 55 38 40 41 27 13 89 21 73 12 52 47 61 56 4 78 41 24 Regions Visited 32 Branch Regions 8 Pre-discovered Areas 6 | . . . 1 1 . . 2 . . . . . . . . . . 2 . . . . . . . . . . . . . . Known Exits Taken 13 | . . 1 . 1 1 . 1 1 . 1 . 1 . 1 . 1 . 1 . . . 1 . . 1 . . . 1 . . . Unknown Exits Taken 8 | 1 1 . 1 . . . . . . . . . . . . . . . . . . . . 1 . 1 1 1 . . 1 . Scrap Searched 7 | . . . . 2 . . . . . . . . . . . . . . . . . . . . 2 2 . 1 . . . . Spaces Dug 137 | . . . . . 5 . 1 2 . . . 1 . 8 . 4 2 13 . 11 . 8 3 8 10 . . . 13 . 38 10 Terrain Destroyed 1303 | . 22 . . 5 34 59 17 2 . . 11 1 8 73 72 83 14 38 83 25 . 42 55 135 86 16 . 41 18 35 213 115 Melee 9 | . . . . . 5 . . . . . . 1 . . . 1 . . . 2 . . . . . . . . . . . . Projectile 470 | . . . . . . . 2 2 . . . . 1 11 1 28 14 38 20 15 . 31 5 54 23 3 . 2 18 1 133 68 AOE 823 | . 22 . . 5 29 59 15 . . . 11 . 7 62 71 54 . . 63 8 . 11 49 81 63 13 . 39 . 34 80 47 Terrain Rammed . | . . . . . . . . . . . . . . . . . . . . . . . . . . . . . . . . . Walls Destroyed . | . . . . . . . . . . . . . . . . . . . . . . . . . . . . . . . . . Machines Disabled . | . . . . . . . . . . . . . . . . . . . . . . . . . . . . . . . . . Actions | -11 -10 -10 -10 -9 -8 -8 -8 -8 -8 -7 -7 -7 -7 -6 -6 -5 -5 -5 -5 -4 -4 -4 -4 -4 -4 -4 -4 -3 -3 -3 -2 -1 --------- Run | Yrd Mat Min Exi Min Mat Gar Mat Sto Gar Fac Gar Fac Gar Fac Gar Fac Gar Fac Gar Fac Was Fac Gar Fac Upp Upp Zhi Pro Res DSF Res Acc Total 22073 | 40 663 55 332 153 774 829 1579 164 361 220 664 454 1042 839 631 1847 526 1599 364 331 619 960 1071 787 414 264 165 312 259 124 2163 1468 Wait 3245 | . 31 . . . 144 16 279 28 77 9 47 37 216 110 141 361 46 181 37 5 145 235 286 202 6 23 2 21 69 2 197 292 Move 15831 | 25 546 55 328 135 487 680 1120 111 262 199 537 375 668 650 401 1251 383 1214 242 256 417 570 674 471 370 227 150 276 162 79 1585 925 Hop . | . . . . . . . . . . . . . . . . . . . . . . . . . . . . . . . . . Pick Up 316 | . 16 . 2 2 18 8 31 . 1 2 6 4 20 2 7 33 11 18 6 8 5 35 14 5 . . 1 . 1 1 35 24 Fast Attach 146 | 1 . . . 1 4 5 5 . . 1 . 1 5 5 2 4 1 8 1 5 10 10 6 9 . 4 6 . . 3 32 17 Attach 134 | . . . . 2 6 2 3 . . 2 1 2 3 5 3 12 6 10 9 4 4 5 3 2 . . . . 2 6 33 9 Detach 71 | . . . . 1 2 1 3 . . . 1 1 3 2 3 3 2 3 1 1 5 5 1 2 . 1 . . . 6 18 6 Swap 462 | 3 8 . . 1 27 31 26 5 6 4 16 9 13 11 19 40 16 45 9 12 6 18 17 15 8 2 . 7 4 11 38 35 Drop 338 | 4 6 . 2 1 23 14 32 2 1 1 7 4 23 1 7 31 10 15 3 4 13 20 16 12 . 3 6 . 1 2 39 35 Fire 1407 | 7 49 . . 10 53 62 75 17 10 2 33 18 67 52 48 104 51 104 48 30 . 62 54 69 28 4 . 8 20 14 184 124 Melee 64 | . . . . . 6 10 1 . . . . 1 24 . . 1 . 1 . 6 14 . . . . . . . . . . . Ram . | . . . . . . . . . . . . . . . . . . . . . . . . . . . . . . . . . Kick . | . . . . . . . . . . . . . . . . . . . . . . . . . . . . . . . . . Crush 29 | . 7 . . . 4 . 4 1 . . . 2 . 1 . 7 . . . . . . . . . . . . . . 2 1 Escape Stasis 28 | . . . . . . . . . 4 . 16 . . . . . . . 8 . . . . . . . . . . . . . Rewire 2 | . . . . . . . . . . . . . . . . . . . . . . . . . 2 . . . . . . . Trap . | . . . . . . . . . . . . . . . . . . . . . . . . . . . . . . . . . Miscellaneous . | . . . . . . . . . . . . . . . . . . . . . . . . . . . . . . . . . Route ------- -11/Scrapyard -10/Materials (discovered 5 exits: *Mat x3 / [*Min] / Sub) -10/Mines (discovered 4 exits: *Mat x2 / *Exi / Sub) -10/Exiles -9/Mines (discovered 2 exits: *Mat x2) -8/Materials (discovered 3 exits: *Fac / *Sto / Gar) -8/Garrison (discovered 4 exits: *Mat x4) -8/Materials (discovered 4 exits: *Fac x2 / *Sto x2) -8/Storage -8/Garrison (discovered 2 exits: *Fac x2) -7/Factory (discovered 3 exits: Fac / Low / Gar) -7/Garrison (discovered 3 exits: *Fac x3) -7/Factory -7/Garrison (discovered 3 exits: *Fac x3) -6/Factory (discovered 6 exits: *Fac / *Low x2 / Ext x2 / Gar) -6/Garrison (discovered 3 exits: *Fac x3) -5/Factory -5/Garrison -5/Factory (discovered 3 exits: *Upp x2 / Gar) -5/Garrison -4/Factory -4/Waste -4/Factory -4/Garrison (discovered 3 exits: *Fac x3) -4/Factory -4/Upper Caves -4/Upper Caves (discovered 2 exits: *Res / *Zhi) -4/Zhirov -3/Proximity Caves -3/Research -3/DSF -2/Research (discovered 2 exits: *Acc / *Qua) -1/Access To Epsilon Eridani History --------- Turn | Location | Event 17 | -11/Scrapyard | Discovered new exit (range 3) 70 | -11/Scrapyard | Entered Materials 305 | -10/Materials | Build established: Mutant 339 | -10/Materials | Discovered new exit (range 14) 507 | -10/Materials | Discovered new exit (range 11) 552 | -10/Materials | Identified exit to Materials 584 | -10/Materials | Learned Storage security intel 604 | -10/Materials | Learned Storage security intel 615 | -10/Materials | Learned location of 2 exits from Subcaves 618 | -10/Materials | Learned 2 Mines zone layouts 619 | -10/Materials | Learned location of 2 exits from Mines 626 | -10/Materials | Identified exit to Subcaves 642 | -10/Materials | Learned 4 Recycling zone layouts 1160 | -10/Materials | Entered Mines 1161 | -10/Mines | Identified exit to Exiles 1185 | -10/Mines | Met a Derelict bent on vengeance 1242 | -10/Mines | Deemed a non-threat by the Exiles lab entrance 1248 | -10/Mines | Entered Exiles 1288 | -10/Exiles | Met 8R-AWN 1314 | -10/Exiles | Met EX-HEX 1364 | -10/Exiles | Met EX-BIN 1383 | -10/Exiles | Aligned with FarCom system 1384 | -10/Exiles | Given EX-Vault access code 1421 | -10/Exiles | Opened EX-Vault 1433 | -10/Exiles | Found Latent Energy Streamer 1468 | -10/Exiles | Warned to stay clear of 0b10 Research branches 1519 | -10/Exiles | Met EX-DEC 1525 | -10/Exiles | Learned location of Zion (-7) 1760 | -10/Exiles | Discovered new exit (range 10) 1776 | -10/Exiles | Left Exiles lab with Latent Energy Streamer 1776 | -10/Exiles | Entered Mines 1779 | -9/Mines | Excavation squad dispatched 1779 | -9/Mines | A large section of the Mines collapsed 1959 | -9/Mines | Learned location of Storage (-8) 2001 | -9/Mines | Discovered new exit (range 7) 2017 | -9/Mines | Identified exit to Materials 2021 | -9/Mines | Entered Materials 2021 | -8/Materials | Evolved 4 slots: Propulsion x2, Utility x2 2481 | -8/Materials | Build established: Scavenger-Mutant 2558 | -8/Materials | Discovered new exit (range 6) 3093 | -8/Materials | Discovered new exit (range 3) 3196 | -8/Materials | Identified exit to Garrison 3196 | -8/Materials | Entered Garrison 3422 | -8/Garrison | Triggered checkpoint 3458 | -8/Garrison | Garrison Relay disabled 3562 | -8/Garrison | Triggered checkpoint 3620 | -8/Garrison | Triggered checkpoint 3710 | -8/Garrison | Discovered new exit (range 16) 3784 | -8/Garrison | Installed Relay Interface Framework 3862 | -8/Garrison | Triggered checkpoint 3893 | -8/Garrison | Garrison Relay disabled 4090 | -8/Garrison | Discovered new exit (range 14) 4196 | -8/Garrison | Triggered checkpoint 4293 | -8/Garrison | Discovered new exit (range 20) 4293 | -8/Garrison | Discovered new exit (range 74) 4293 | -8/Garrison | Discovered new exit (range 41) 4293 | -8/Garrison | Discovered new exit (range 26) 4474 | -8/Garrison | Triggered checkpoint 4534 | -8/Garrison | Entered Materials 4534 | -8/Materials | Accompanied by 4 allies 4593 | -8/Materials | Repaired Arm. Treads 4906 | -8/Materials | Build established: Bothacker-Mutant 5252 | -8/Materials | Garrison activated, responded to threat 5971 | -8/Materials | Discovered new exit (range 6) 6484 | -8/Materials | Discovered new exit (range 11) 6943 | -8/Materials | Learned location of 1 exit from Extension 6974 | -8/Materials | Learned Factory security intel 6997 | -8/Materials | Learned Storage stockpile data 7016 | -8/Materials | Learned location of 1 exit from Extension 7017 | -8/Materials | Learned location of 2 exits from Factory 7022 | -8/Materials | Learned Storage trap positions 7038 | -8/Materials | Learned Factory non-interactive machine intel 7062 | -8/Materials | Learned 2 Lower Caves zone layouts 7097 | -8/Materials | Learned Factory security intel 7164 | -8/Materials | Discovered new exit (range 9) 7355 | -8/Materials | Discovered new exit (range 8) 7394 | -8/Materials | Identified exit to Factory 7455 | -8/Materials | Identified exit to Storage 7460 | -8/Materials | Entered Storage 7461 | -8/Storage | Loaded intel: 9 trap records 7803 | -8/Storage | Identified exit to Garrison 7803 | -8/Storage | Entered Garrison 7850 | -8/Garrison | Expanded RIF knowledge: Watcher Feeds 7985 | -8/Garrison | Triggered checkpoint 8028 | -8/Garrison | Triggered checkpoint 8129 | -8/Garrison | Discovered exit to Factory (range 8) 8411 | -8/Garrison | Triggered checkpoint 8475 | -8/Garrison | Discovered exit to Factory (range 12) 8494 | -8/Garrison | Expanded RIF knowledge: Robot Detection 8534 | -8/Garrison | Entered Factory 8534 | -7/Factory | Accompanied by 1 ally 8534 | -7/Factory | Evolved 2 slots: Utility x1, Weapon x1 8535 | -7/Factory | Identified exit to Factory 8535 | -7/Factory | Identified exit to Lower Caves 8537 | -7/Factory | Loaded intel: 242 non-interactive machine locations 8848 | -7/Factory | Build established: Bothacker-Tank 9035 | -7/Factory | Identified exit to Garrison 9035 | -7/Factory | Entered Garrison 9035 | -7/Garrison | Accompanied by 2 allies 9093 | -7/Garrison | Triggered checkpoint 9131 | -7/Garrison | Garrison Relay disabled 9294 | -7/Garrison | Triggered checkpoint 9315 | -7/Garrison | Destroyed 7 combat bots 9427 | -7/Garrison | Garrison Relay disabled 9471 | -7/Garrison | Triggered checkpoint 9527 | -7/Garrison | Garrison Relay disabled 9588 | -7/Garrison | Discovered new exit (range 14) 9627 | -7/Garrison | Found embedded Infiltrators 9727 | -7/Garrison | Triggered checkpoint 9771 | -7/Garrison | Triggered checkpoint 9877 | -7/Garrison | Discovered new exit (range 8) 9961 | -7/Garrison | Triggered checkpoint 10037 | -7/Garrison | Expanded RIF knowledge: Autoassimilate 10066 | -7/Garrison | Garrison Relay disabled 10241 | -7/Garrison | Triggered checkpoint 10301 | -7/Garrison | Garrison Relay disabled 10466 | -7/Garrison | Discovered new exit (range 12) 10497 | -7/Garrison | Entered Factory 10497 | -7/Factory | Accompanied by 6 allies 10506 | -7/Factory | Build established: Bothacker-Skirmisher 11412 | -7/Factory | Garrison activated, responded to threat 11498 | -7/Factory | Identified exit to Garrison 11504 | -7/Factory | Entered Garrison 11504 | -7/Garrison | Accompanied by 6 allies 11690 | -7/Garrison | Lost 5 allies 12050 | -7/Garrison | Build established: Mutant 12118 | -7/Garrison | Triggered checkpoint 12197 | -7/Garrison | Garrison Relay disabled 12304 | -7/Garrison | Triggered checkpoint 12366 | -7/Garrison | Triggered checkpoint 12374 | -7/Garrison | Triggered checkpoint 12412 | -7/Garrison | Destroyed 7 combat bots 12502 | -7/Garrison | Build established: Bothacker-Tank 12506 | -7/Garrison | Discovered exit to Factory (range 8) 12560 | -7/Garrison | Triggered checkpoint 12635 | -7/Garrison | Garrison Relay disabled 12702 | -7/Garrison | Triggered checkpoint 12750 | -7/Garrison | Discovered exit to Factory (range 8) 12856 | -7/Garrison | Triggered checkpoint 12937 | -7/Garrison | Spotted B-75 Beast 12973 | -7/Garrison | Destroyed B-75 Beast 13011 | -7/Garrison | Expanded RIF knowledge: Command Fork 13020 | -7/Garrison | Garrison Relay disabled 13084 | -7/Garrison | Discovered exit to Factory (range 15) 13118 | -7/Garrison | Entered Factory 13118 | -6/Factory | Evolved 2 slots: Utility x2 13350 | -6/Factory | Discovered new exit (range 17) 13578 | -6/Factory | Identified exit to Lower Caves 13578 | -6/Factory | Identified exit to Extension 13651 | -6/Factory | Discovered new exit (range 12) 14247 | -6/Factory | Lost 3 allies 14414 | -6/Factory | Identified exit to Garrison 14414 | -6/Factory | Entered Garrison 14414 | -6/Garrison | Accompanied by 1 ally 14427 | -6/Garrison | Triggered checkpoint 14737 | -6/Garrison | Triggered checkpoint 14830 | -6/Garrison | Discovered new exit (range 13) 14882 | -6/Garrison | Triggered checkpoint 15006 | -6/Garrison | Discovered new exit (range 8) 15080 | -6/Garrison | Garrison Relay disabled 15172 | -6/Garrison | Triggered checkpoint 15283 | -6/Garrison | Discovered new exit (range 8) 15308 | -6/Garrison | Expanded RIF knowledge: Alert ID Control 15361 | -6/Garrison | Entered Factory 15361 | -5/Factory | Accompanied by 2 allies 15361 | -5/Factory | Evolved 2 slots: Utility x2 15596 | -5/Factory | Fabricated Imp. Heavy Treads? 15605 | -5/Factory | Build established: Botlord-Tank 16099 | -5/Factory | Garrison activated, responded to threat 16385 | -5/Factory | Cargo convoy interrupted 16561 | -5/Factory | First assault squad dispatched 16565 | -5/Factory | Lost 3 parts (1n2u) 16571 | -5/Factory | Destroyed 9 combat bots 17207 | -5/Factory | System corruption reached 10% 17440 | -5/Factory | Fabricated Imp. Heavy Treads (x1) 18152 | -5/Factory | Identified exit to Garrison 18152 | -5/Factory | Entered Garrison 18180 | -5/Garrison | Expanded RIF knowledge: Coupler Efficiency 18338 | -5/Garrison | Triggered checkpoint 18376 | -5/Garrison | Garrison Relay disabled 18428 | -5/Garrison | Spotted B-75 Beast 18467 | -5/Garrison | Destroyed B-75 Beast 18566 | -5/Garrison | Triggered checkpoint 18604 | -5/Garrison | Triggered checkpoint 18618 | -5/Garrison | Triggered checkpoint 18650 | -5/Garrison | Triggered checkpoint 18753 | -5/Garrison | Discovered new exit (range 8) 18794 | -5/Garrison | Triggered checkpoint 18871 | -5/Garrison | Expanded RIF knowledge: Patrol Navigation 18873 | -5/Garrison | Lost 4 allies 18905 | -5/Garrison | Garrison Relay disabled 18932 | -5/Garrison | Build established: Botlord-Gunner 18980 | -5/Garrison | Entered Factory 18980 | -5/Factory | Accompanied by 2 allies 19192 | -5/Factory | Lost 3 allies 19520 | -5/Factory | Discovered new exit (range 15) 20305 | -5/Factory | Lost 3 allies 20688 | -5/Factory | Build established: Botlord-Tank 21175 | -5/Factory | Learned Testing scanalyzer intel 21215 | -5/Factory | Learned 4 Armory zone layouts 21245 | -5/Factory | Learned Testing non-interactive machine intel 21263 | -5/Factory | Learned location of Warlord (-5) 21271 | -5/Factory | Identified exit to Upper Caves 21272 | -5/Factory | Learned location of 1 exit from Armory 21273 | -5/Factory | Learned Quarantine emergency access door positions 21274 | -5/Factory | Loaded intel: 105 trap records 21284 | -5/Factory | Learned Quarantine emergency access door positions 21334 | -5/Factory | Learned 4 Upper Caves zone layouts 21339 | -5/Factory | Garrison activated, responded to threat 21518 | -5/Factory | Identified exit to Garrison 21518 | -5/Factory | Entered Garrison 21751 | -5/Garrison | Destroyed 7 combat bots 21761 | -5/Garrison | Lost 7 parts (1p2n2u2w) 21794 | -5/Garrison | Triggered checkpoint 21832 | -5/Garrison | Garrison Relay disabled 22042 | -5/Garrison | Triggered checkpoint 22060 | -5/Garrison | Spotted B-75 Beast 22076 | -5/Garrison | Destroyed B-75 Beast 22097 | -5/Garrison | Build established: Botlord-Gunner 22104 | -5/Garrison | Triggered checkpoint 22141 | -5/Garrison | Triggered checkpoint 22147 | -5/Garrison | Triggered checkpoint 22172 | -5/Garrison | Destroyed 8 combat bots 22322 | -5/Garrison | Discovered new exit (range 10) 22454 | -5/Garrison | Entered Factory 22454 | -4/Factory | Evolved 2 slots: Utility x2 22681 | -4/Factory | Fabricated Imp. Heavy Treads? 22849 | -4/Factory | Discovered new exit (range 8) 23022 | -4/Factory | Lost 3 parts (1n2u) 23031 | -4/Factory | Sucked down chute 23031 | -4/Factory | Entered Waste 23031 | -4/Waste | The area was eerily silent 23236 | -4/Waste | Found Prototype Launcher 23236 | -4/Waste | Identified Gui. Micro-nuke Launcher 23320 | -4/Waste | Discovered new exit (range 11) 23324 | -4/Waste | Build established: Botlord-Mutant 23558 | -4/Waste | Found Prototype Launcher 23558 | -4/Waste | Identified Point Singularity Launcher 23880 | -4/Waste | Entered Factory 23934 | -4/Factory | Watched by a mysterious "MATRIX" hacker 24206 | -4/Factory | Build established: Botlord-Tank 24221 | -4/Factory | P-70 Sage assimilated allied Technician 7a 24579 | -4/Factory | Repaired Adv. Heavy Siege Treads 24691 | -4/Factory | Found Mni. Smartbomb Launcher 24806 | -4/Factory | Repaired Broken Adv. Heavy Siege Treads 25246 | -4/Factory | Identified exit to Garrison 25268 | -4/Factory | Entered Garrison 25288 | -4/Garrison | Triggered checkpoint 25551 | -4/Garrison | Triggered checkpoint 25576 | -4/Garrison | Garrison Relay disabled 25692 | -4/Garrison | Spotted B-86 Titan 25699 | -4/Garrison | Assimilated Titan 7a with formatsys_high 25702 | -4/Garrison | Triggered checkpoint 25829 | -4/Garrison | Lost 3 allies 25846 | -4/Garrison | Triggered checkpoint 25873 | -4/Garrison | Triggered checkpoint 25976 | -4/Garrison | Discovered new exit (range 14) 26168 | -4/Garrison | Triggered checkpoint 26234 | -4/Garrison | Triggered checkpoint 26329 | -4/Garrison | Spotted B-86 Titan 26330 | -4/Garrison | Autoassimilated Titan 7b with RIF 26470 | -4/Garrison | Garrison Relay disabled 26512 | -4/Garrison | Discovered new exit (range 14) 26616 | -4/Garrison | Discovered new exit (range 13) 26651 | -4/Garrison | Destroyed Titan 7a 26670 | -4/Garrison | Expanded RIF knowledge: Zone Cloak 26836 | -4/Garrison | Entered Factory 27011 | -4/Factory | Repaired Imp. Medium Armor Plating 27403 | -4/Factory | Noticed a derelict Sapper rigging charges 27480 | -4/Factory | Fabricated Lyr. Medium Armor Plating? 27536 | -4/Factory | Central database locked down 27586 | -4/Factory | First assault squad dispatched 27601 | -4/Factory | Fabricated Lyr. Medium Armor Plating? 27735 | -4/Factory | Destroyed 8 combat bots 27773 | -4/Factory | System corruption reached 10% 27931 | -4/Factory | Discovered new exit (range 15) 28018 | -4/Factory | Entered Upper Caves 28018 | -4/Upper Caves | Accompanied by 1 ally 28152 | -4/Upper Caves | Identified exit to Upper Caves 28692 | -4/Upper Caves | Entered another Upper Caves area 28692 | -4/Upper Caves | Accompanied by 2 allies 28697 | -4/Upper Caves | Discovered new exit (range 10) 28915 | -4/Upper Caves | Attracted the attention of an 0b10 checkpoint 29087 | -4/Upper Caves | Discovered new exit (range 10) 29102 | -4/Upper Caves | Entered Zhirov 29102 | -4/Zhirov | Accompanied by 2 allies 29104 | -4/Zhirov | Discovered new exit (range 3) 29216 | -4/Zhirov | Found Alien Artifact 29216 | -4/Zhirov | Identified Integrated Dissipator 29216 | -4/Zhirov | Installed Integrated Dissipator, increased core heat dissipation (+20) 29239 | -4/Zhirov | Found Alien Artifact 29357 | -4/Zhirov | Entered Proximity Caves 29357 | -3/Proximity Caves | Accompanied by 2 allies 29739 | -3/Proximity Caves | Attracted the attention of an 0b10 outpost 29828 | -3/Proximity Caves | Discovered new exit (range 14) 29850 | -3/Proximity Caves | Entered Research 29850 | -3/Research | Evolved 2 slots: Power x1, Weapon x1 30227 | -3/Research | Identified exit to DSF 30227 | -3/Research | Entered DSF 30266 | -3/DSF | Additional patrols routed to DSF 30401 | -3/DSF | Discovered new exit (range 13) 30409 | -3/DSF | Sterilization system engaged 30429 | -3/DSF | Ambient heat levels rising (+10) 30429 | -3/DSF | Destroyed 9 combat bots 30436 | -3/DSF | Entered Research 30436 | -2/Research | Evolved 2 slots: Utility x2 31190 | -2/Research | Discovered new exit (range 15) 31997 | -2/Research | Discovered new exit (range 36) 32020 | -2/Research | Destroyed 18 combat bots 32023 | -2/Research | Lost 8 parts (5u3w) 32186 | -2/Research | First assault squad dispatched 32756 | -2/Research | Lost 3 parts (1p2n) 32797 | -2/Research | System corruption reached 10% 32976 | -2/Research | Identified exit to Quarantine 33120 | -2/Research | Identified Transdimensional Reconstructor 33120 | -2/Research | Warped through subspace 33146 | -2/Research | Lost 3 parts (1n1u1w) 33284 | -2/Research | Found Prototype Processor 33284 | -2/Research | Identified Exp. Terrain Scan Processor 33875 | -2/Research | Entered Access 33875 | -1/Access | Evolved 2 slots: Propulsion x2 34299 | -1/Access | Found Imp. Powered Armor 34301 | -1/Access | Found Imp. Powered Armor 34304 | -1/Access | Found Imp. Powered Armor 34309 | -1/Access | Found Imp. Powered Armor 34312 | -1/Access | Found Imp. Powered Armor 34316 | -1/Access | Found Imp. Powered Armor 34319 | -1/Access | Found Imp. Powered Armor 34585 | -1/Access | Build established: Scavenger-Tank 34840 | -1/Access | Found Imp. Powered Armor 34843 | -1/Access | Found Imp. Powered Armor 34875 | -1/Access | First assault squad dispatched 34933 | -1/Access | Garrison activated, responded to threat 35214 | -1/Access | System corruption reached 10% 35224 | -1/Access | Build established: Tank 35434 | -1/Access | Lost 4 allies 35678 | -1/Access | Build established: Scavenger-Tank 35876 | -1/Access | Spotted B-99 Colossus 35897 | -1/Access | Destroyed B-99 Colossus 35903 | -1/Access | Spotted B-99 Colossus 35949 | -1/Access | Destroyed B-99 Colossus 36015 | -1/Access | Discovered new exit (range 5) 36021 | *** | Escaped! Last Messages --------------- 35976_ Sealed Heavy Doors breached. 35983_ Acquired 79 matter. 35983_ Acquired 8 matter. 35983_ Acquired 121 matter. 35983_ Acquired 6 matter. 35983_ Acquired 13 matter. 35983_ Acquired 24 matter. 35983_ Acquired 18 matter. 35983_ Acquired 13 matter. 35985_ Acquired 12 matter. 35985_ Acquired 23 matter. 35985_ Acquired 22 matter. 35988_ Acquired 7 matter. 35988_ Acquired 155 matter. 35989_ Acquired 91 matter. 36015_ CB27AGKJLVHBCUYSWTHBVU|ZWX >TUAXMX=DEHKQ 36015_ Main Access Shell breached. 36015_ EXIT=FOUND [Achievement: 50k Club] [Achievement: Victory By Combat] Map ----- +----------------------------------------------------+ | ?????????????????????????????????????????????????? | | ?????????????????????????????????????????????????? | | ?????????????????????????????????????????????????? | | ?????????????????????????????????????????????????? | | ?????????????????????????????????????????????????? | | ?????????????????????????????????????????????????? | | ?????????????????????????????????????????????????? | | ?????????????????????????????????????????????????? | | ?????????????????????????????????????????????????? | | ?????????????????????????????????????????????????? | | ##########???????????????????????????????????????? | | #???????????????????????????????????????? | | #???????????????????????????????????????? | | #???????????????????????????????????????? | | #???????????????????????????????????????? | | " #???????????????????????????????????????? | | """ ""#???????????????????????????????????????? | | """ ""#??????????????????????????Y????????????? | | " T"#???????????????????????????????????????? | | / ""#???????????????????????????????????????? | | " #########??##########"??????????????????? | | ! " "??" "??????????????????? | | % " """" ???????????????????? | | ####""+#"" """"""?????????????????????? | | ! = "" " " "?????????????????????? | | != """" " "@ "?????????????????????? | | "??" "" "?????????????????????? | | "??" " "?????????????????????? | | ######+##" "??" """"""?????????????????????? | | ???? # "??" ??????????????????????????? | | ??? # "??" ??????????????????????????? | | ?? #########??###??????????????????????????? | | ? ?????????????????????????????????????????? | | ?" ??????????????????????????????w??????????? | | ?? ?????????????????????????????????????????? | | ???? ??????????????????????????????????????????? | | ?????????????????????????????????????????????????? | | ?????????????????????????????????????????????????? | | ?????????????????????????????????????????????????? | | ?????????????????????????????????????????????????? | | ?????????????????????????????????????????????????? | | ?????????????????????????????????????????????????? | | ?????????????????????????????????????????????????? | | ?????????????????????????????????????????????????? | | ?????????????????????????????????????????????????? | | ?????????????????????????????????????????????????? | | ?????????????????????????????????????????????????? | | ?????????????????????????????????????????????????? | | ?????????????????????????????????????????????????? | | ?????????????????????????????????????????????????? | +----------------------------------------------------+ Best States ------------- Heat Dissipation 129 Energy Generation 45 Energy Capacity 600 Matter Stores 600 Matter Capacity 600 Sight Range 16 Terrain Scan Density 1010 Armor Coverage 4000 Resistance: TH 15 Propulsion Shielding 66 Weapon Cycling 20 Evasion (%) 40 Targeting Accuracy 8 Target Analysis 6 Core Analysis 9 Recoil Reduction 6 Offensive Hacking 14 Defensive Hacking 12 Relay Coupler Types 5 Relay Coupler Value 120 Item Schematics ----------------- Hcp. Storage Unit | -10/Materials | Hacked Med. Armor Plating | -8/Materials | Scanalyzed Imp. Heavy Treads | -6/Factory | Scanalyzed Lyr. Medium Armor Plating | -5/Factory | Scanalyzed Assault Drone Bay | -4/Zhirov | Free Exp. Heat Sink | -4/Zhirov | Free Exp. Optical Array | -4/Zhirov | Free Imp. Arc Thrower | -4/Zhirov | Free Robot Schematics ------------------ None Fabricated ------------ Imp. Heavy Treads | x1 | -5/Factory Imp. Heavy Treads | x1 | -5/Factory Imp. Heavy Treads | x1 | -4/Factory Lyr. Medium Armor Plating | x2 | -4/Factory Lyr. Medium Armor Plating | x2 | -4/Factory Repaired ---------- Arm. Treads | 18% | -8/Materials Adv. Heavy Siege Treads | 14% | -4/Factory Adv. Heavy Siege Treads | 27% | -4/Factory | Broken Imp. Medium Armor Plating | 21% | -4/Factory Studied --------- Minigun | -8/Materials | Hacked Lgt. Treads | -8/Materials | Hacked Imp. Remote Datajack | -4/Factory | Hacked Alien Tech Used ----------------- Integrated Dissipator Transdimensional Reconstructor Achievements -------------- 50k Club Beloved Blue Mage Giant Slayer Hot Goods Immobile And Lovin' It Tank Tank Life Thread The Needle Around The Corner Turtlemind Victory By Combat Window Shopping Zeroed Repercussions Challenges ------------ None Game ------ Seed ColdStasisStabilizer Manual? 0 Play Time 06:35:36 Cumulative 179.5 hours Start 2026.09.16 @ 23:26:11 End 2026.09.17 @ 23:53:56 Sessions 9 Manual Loads 0 Difficulty Rogue Special Mode None Game No. 129 Rogue 129 Adventurer 0 Explorer 0 Win Type 0 Total 5 Types 4/0/1/0/0/0/0/0/0/0 Lore% 60 Gallery% 51 Achievement% 45 Wizard Run 0 Options --------- Layout 2 ASCII 0 Keyboard 1 Movement Numpad Keybinds 0 Fullscreen 2 Font 32/SmallcapsGlow Map View 50x44 Zoom Use 0% Tactical HUD 1 Map Filters NONE Filters NONE Steam 1 RUN: a4867140-0286-41d0-93d9-582313231a33